Cogmind - Beta 14 @@@ ROGUE MODE // 2025.03.03 @ 06:29:10 // Winter2019/RPGLIKE Player: Fellun Result: Destroyed by M Guard with Advanced Micro-nuke Launcher Performance ------------- Evolutions (9) 4500 Regions Visited (32) 6400 Robots Destroyed (543) 2715 Value Destroyed (28186) 28186 Prototype IDs (57) 1140 Alien Tech Used (11) 2200 Bonus (32493) 32493 TOTAL SCORE: 77634 Bonus ------- Triggered High Security 1000 Triggered Max Security 1000 High Alert Combat Kills 9230 Follower Combat Kills 7192 Network Hubs Disabled 400 Met Data Miner 300 MAIN.C Attacked Warlord 500 Built Enhanced Grunts 300 Met R17 at Cetus 500 Met R17 at Research 2000 Scanned by Researcher 500 Pursued by Intercept 1000 Met Sigix 2000 Activated Exoskeleton 3000 Met MAIN.C 5000 Friendly Fire -1429 Cogmind --------- Core Integrity 0/2100 Matter 288/300 Energy 85/646 System Corruption 0% Temperature Cool (-104) Movement Flying (108) Ox1 Location -1/Command Parts ------- > --- POWER (2) -------- Multi-Quantum Reactor > --- PROPULSION (6) --- Flying ITA Exoskeleton Field Propulsion Drive Impulse Thruster > --- UTILITY (11) ----- Armored Scrap Engine Advanced Cryofiber Web Gravity Neutralizer Advanced Signal Interpreter Improved Armor Integrity Analyzer Advanced Transmission Jammer Advanced Phase Shifter Light Regenerative Plating Graphene Brace Point Defense Array > --- WEAPON (7) ------- Hpw. Thermal Quantum Construct/G Hvy. Thermal Nova Construct/C Hyp. Accelerated Helical Construct/C Hpw. Thermic Quantum Construct/G Hpw. Laser Quantum Construct/G > --- INVENTORY (4) ---- Experimental Heat Sink Peak State ------------ > --- POWER ------------ Multi-Quantum Reactor > --- PROPULSION ------- Flying ITA Exoskeleton Cooled Nuclear Pulse Thruster Cooled Field Propulsion Drive Experimental Q-thruster > --- UTILITY ---------- Armored Scrap Engine Advanced Cryofiber Web Improved Cooling System Gravity Neutralizer Improved Sensor Array Advanced Signal Interpreter Improved Armor Integrity Analyzer Advanced Transmission Jammer Microwarp Drive > --- WEAPON ----------- Hpw. Thermal Quantum Construct/G Hvy. Thermal Nova Construct/C Hyp. Accelerated Helical Construct/C Hpw. Thermic Quantum Construct/G Hpw. Laser Quantum Construct/G > --- INVENTORY -------- Improved Phase Shifter Sigix Containment Pod [Rating: 204] Favorites ----------- Power Constructs Engine Light Deuterium Engine Power Core Light Fission Core Reactor Constructs Propulsion Xenon Bombardment Thruster Wheel Compact Wheel Flight Unit Xenon Bombardment Thruster Utility Armored Scrap Engine Device Armored Scrap Engine Storage Large Matter Pod Processor Advanced Signal Interpreter Hackware Hacking Suite Protection Light Regenerative Plating Artifact Spacefold Activator Weapon Constructs Energy Gun Constructs Energy Cannon Constructs Ballistic Gun Improved Assault Rifle Ballistic Cannon Constructs Launcher Rocket Launcher Build | -11 -10 -10 -9 -9 -9 -7 -7 -7 -7 -6 -6 -6 -6 -6 -5 -5 -5 -5 -5 -4 -4 -4 -4 -4 -4 -3 -3 -2 -2 -2 -1 -1 ------- Run | Yrd Mat Min Mat Sto Rec Fac Low Low Zio Pro Fac Low Low Dat Pro Fac Upp Upp War Pro Fac Ext Cet Arc Hub Res Tes Res Qua Sec Acc Com Slots Evolved 21 | 4 . . 2 2 2 3 . . 1 . . . . . . 3 . . . . 1 . . 2 . . 1 . . . . . Power 1 | . . . . . . 1 . . . . . . . . . . . . . . . . . . . . . . . . . . Propulsion 5 | 1 . . 1 . . 1 . . . . . . . . . 1 . . . . . . . 1 . . . . . . . . Utility 10 | 1 . . 1 1 2 1 . . 1 . . . . . . 1 . . . . 1 . . . . . 1 . . . . . Weapon 5 | 2 . . . 1 . . . . . . . . . . . 1 . . . . . . . 1 . . . . . . . . Parts Attached 172 | 6 3 1 7 13 3 19 5 . . 4 5 1 2 . . 16 . 1 . 2 6 4 2 2 11 6 13 6 8 20 3 3 Power 10 | 1 . 1 . . . 2 2 . . 1 . . . . . . . . . . . . . . 2 1 . . . . . . Engine 3 | 1 . . . . . 1 1 . . . . . . . . . . . . . . . . . . . . . . . . . Core 5 | . . 1 . . . 1 1 . . 1 . . . . . . . . . . . . . . 1 . . . . . . . Reactor 2 | . . . . . . . . . . . . . . . . . . . . . . . . . 1 1 . . . . . . Propulsion 32 | 2 2 . 3 2 . 6 1 . . . 2 . . . . 2 . . . . . . . . . 4 2 . 1 2 2 1 Treads . | . . . . . . . . . . . . . . . . . . . . . . . . . . . . . . . . . Leg . | . . . . . . . . . . . . . . . . . . . . . . . . . . . . . . . . . Wheel 2 | 2 . . . . . . . . . . . . . . . . . . . . . . . . . . . . . . . . Hover . | . . . . . . . . . . . . . . . . . . . . . . . . . . . . . . . . . Flight 30 | . 2 . 3 2 . 6 1 . . . 2 . . . . 2 . . . . . . . . . 4 2 . 1 2 2 1 Utility 107 | . . . 3 3 3 8 . . . 3 2 1 2 . . 13 . 1 . 2 6 3 2 2 8 . 11 6 7 18 1 2 Device 73 | . . . 1 . 2 4 . . . 2 1 . 2 . . 10 . . . 1 4 3 2 1 6 . 8 5 5 13 1 2 Storage 1 | . . . . . 1 . . . . . . . . . . . . . . . . . . . . . . . . . . . Processor 7 | . . . . 1 . . . . . . . . . . . 1 . 1 . . . . . . 1 . . . 1 2 . . Hackware 4 | . . . 1 . . 1 . . . . . . . . . 1 . . . . . . . . . . . 1 . . . . Protection 20 | . . . 1 2 . 3 . . . 1 1 1 . . . 1 . . . 1 2 . . 1 1 . 3 . 1 1 . . Artifact 2 | . . . . . . . . . . . . . . . . . . . . . . . . . . . . . . 2 . . Weapon 23 | 3 1 . 1 8 . 3 2 . . . 1 . . . . 1 . . . . . 1 . . 1 1 . . . . . . Energy Gun 15 | 3 1 . . 3 . 3 2 . . . 1 . . . . 1 . . . . . 1 . . . . . . . . . . Energy Cannon 1 | . . . . . . . . . . . . . . . . . . . . . . . . . 1 . . . . . . . Ballistic Gun 3 | . . . 1 2 . . . . . . . . . . . . . . . . . . . . . . . . . . . . Ballistic Cannon 1 | . . . . . . . . . . . . . . . . . . . . . . . . . . 1 . . . . . . Launcher 3 | . . . . 3 . . . . . . . . . . . . . . . . . . . . . . . . . . . . Special Weapon . | . . . . . . . . . . . . . . . . . . . . . . . . . . . . . . . . . Impact Weapon . | . . . . . . . . . . . . . . . . . . . . . . . . . . . . . . . . . Slashing Weapon . | . . . . . . . . . . . . . . . . . . . . . . . . . . . . . . . . . Piercing Weapon . | . . . . . . . . . . . . . . . . . . . . . . . . . . . . . . . . . Special Melee Weapon . | . . . . . . . . . . . . . . . . . . . . . . . . . . . . . . . . . Unidentified Prototypes 33 | . . . 1 . 1 1 . . . . 1 . . . . 2 . . . . . . . . 1 2 6 3 1 14 . . Corrupted Parts 1 | . . . . . . . . . . . . . . . . . . . . . . . . . . . 1 . . . . . System Corruption 10 | . . . . . . . . . . . . . . . . . . . . . . . . . . . 10 . . . . . Parts Lost 4 | . . . . . . 2 . . . . . . . . . 1 . . . . . . . . . . . . . . 1 . Power . | . . . . . . . . . . . . . . . . . . . . . . . . . . . . . . . . . Propulsion . | . . . . . . . . . . . . . . . . . . . . . . . . . . . . . . . . . Utility 4 | . . . . . . 2 . . . . . . . . . 1 . . . . . . . . . . . . . . 1 . Weapon . | . . . . . . . . . . . . . . . . . . . . . . . . . . . . . . . . . Highest Loss Streak 1 | . . . . . . 1 . . . . . . . . . 1 . . . . . . . . . . . . . . 1 . To Critical Strikes . | . . . . . . . . . . . . . . . . . . . . . . . . . . . . . . . . . Average Slot Usage (%) 87 | . 73 75 95 100 95 89 90 94 88 93 94 94 94 94 94 93 95 95 95 95 95 95 95 89 83 81 79 77 78 77 71 71 Engine 1 | . 12 8 . . . 2 7 8 5 6 5 5 5 5 5 . . . . . . . . . . . . . . . . . Core 3 | . . 3 11 8 7 5 . 2 5 4 5 5 5 5 5 8 9 9 9 5 4 4 4 4 . . . . . . . . Reactor 1 | . . . . . . . . . . . . . . . . . . . . 2 4 4 4 4 4 3 4 4 4 3 3 3 Flight 19 | . 17 25 25 26 22 18 18 23 22 22 22 22 22 22 22 22 23 23 23 23 22 22 22 21 20 17 16 16 16 15 10 9 Device 23 | . . . 9 8 13 18 23 23 22 23 22 22 22 22 22 24 28 23 23 23 26 27 27 25 25 29 27 25 26 26 25 26 Processor 6 | . . . . 8 7 5 5 5 5 5 5 5 5 5 5 4 4 8 9 9 9 9 9 8 8 8 8 8 9 7 7 7 Hackware 2 | . . . 6 8 7 5 5 5 5 5 5 5 5 5 5 2 . . . . . . . . . . . 2 . . . . Protection 3 | . . . 9 8 6 2 . . . 2 5 5 5 5 5 4 4 4 4 4 4 4 4 1 4 . 3 4 3 3 3 3 Energy Gun 11 | . 37 37 24 15 14 14 16 17 16 11 11 15 16 16 16 10 6 10 14 14 14 11 9 9 8 3 . 3 10 11 11 11 Energy Cannon 2 | . . . . . . . 3 5 5 5 10 5 . . . . . . . . . . 4 . . 5 1 4 4 3 . 2 Ballistic Gun 3 | . . . 9 9 14 5 . . . 3 . . . . . 2 10 9 9 9 3 1 . 5 8 5 7 2 . . . . Ballistic Cannon 4 | . . . . . . 3 1 . . . . . 4 5 5 9 4 2 . . 4 8 9 6 4 5 10 8 4 3 6 3 Peak Build Rating 204 | 6 6 8 19 28 48 75 78 78 78 85 87 86 86 85 85 120 121 122 122 125 133 134 135 141 148 169 185 182 189 204 196 203 Average Rating 119 | 4 5 6 15 21 37 66 75 78 78 81 85 85 84 85 85 109 120 121 122 122 132 130 134 134 135 150 172 176 184 188 187 197 On Entrance 100 | . 6 6 8 19 28 47 73 78 78 78 85 85 85 85 85 85 120 121 122 122 123 133 130 135 141 135 164 179 172 189 189 196 Naked Turns . | . . . . . . . . . . . . . . . . . . . . . . . . . . . . . . . . . Heaviest Build 116 | 7 8 10 15 25 26 41 36 36 36 41 44 44 45 45 45 56 59 55 52 52 56 58 57 65 65 76 82 87 87 84 105 116 Greatest Support 113 | 26 26 13 23 29 29 38 50 50 50 50 50 48 48 48 48 67 67 67 67 67 67 67 67 67 67 83 83 82 88 88 107 113 Greatest Overweight (x) 2 | . 1 . . . . 1 . . . . . 1 . . . 1 . . . . . . . . . 1 . 1 1 1 2 1 Average Overweight (x) . | . . . . . . . . . . . . . . . . . . . . . . . . . . . . . . . . . Largest Inventory Capacity 4 | . 1 1 1 1 2 2 2 2 2 2 3 3 3 3 3 3 3 3 3 3 3 3 3 3 3 3 3 3 3 4 4 4 Average Capacity 2 | . . 1 1 1 1 2 2 2 2 2 2 3 3 3 3 3 3 3 3 3 3 3 3 3 3 3 3 3 3 3 4 4 Most Carried 4 | . 1 1 1 1 2 2 2 2 2 2 3 3 3 3 3 3 3 3 3 3 3 3 3 3 3 3 3 3 3 4 4 2 Average Carried 2 | . . 1 1 . 1 1 2 2 2 2 2 3 3 3 3 3 3 3 3 2 2 3 3 3 2 2 2 3 2 1 1 1 Final Capacity 4 | . 1 1 1 1 2 2 2 2 2 2 3 3 3 3 3 3 3 3 3 3 3 3 3 3 3 3 3 3 3 4 4 4 Final Carried 3 | . 1 1 1 1 2 2 2 2 2 2 3 3 3 3 3 3 3 3 3 3 3 3 3 3 2 2 3 3 3 1 1 1 Scrap Engine Consumption 483 | . . . . . 26 70 9 7 1 12 17 9 10 . 2 62 10 2 . 4 16 15 22 6 21 65 20 32 5 23 12 5 Constructs Created 11 | . . . . . . 5 . . . . . . . . . 2 . . . . . . . 1 . . 1 1 1 . . . Constructs Modified 162 | . . . . . . 20 8 1 1 5 7 5 6 . . 14 6 1 . 1 8 7 3 5 . 28 6 4 9 . 12 5 Class Distribution -------------------- 25% | Construct 22% | Scout 10% | Hacker-Scout 6% | Hacker-Skirmisher 6% | Sprinter 4% | Hacker-Sprinter 3% | Hacker-Gunner 3% | Commander-Sprinter 3% | Scavenger-Scout 3% | Hacker-Tank Dominant Class ---------------- Gunner | -10/Materials Gunner | -10/Mines Scavenger-Gunner | -9/Materials Scavenger-Sprinter | -9/Storage Sprinter | -9/Recycling Hacker-Gunner | -7/Factory Hacker-Skirmisher | -7/Lower Caves Hacker-Skirmisher | -7/Lower Caves Hacker-Skirmisher | -7/Zion Scavenger-Scout | -6/Proximity Caves Scavenger-Scout | -6/Factory Hacker-Tank | -6/Lower Caves Hacker-Scout | -6/Lower Caves Hacker-Scout | -6/Data Miner Hacker-Scout | -5/Proximity Caves Hacker-Scout | -5/Factory Scout | -5/Upper Caves Scout | -5/Upper Caves Scout | -5/Warlord Scout | -4/Proximity Caves Scout | -4/Factory Scout | -4/Extension Sprinter | -4/Cetus Commander-Sprinter | -4/Archives Sprinter | -4/Hub_04(d) Scout | -3/Research Construct | -3/Testing Hacker-Construct | -2/Research Construct | -2/Quarantine Construct | -2/Section 7 Construct | -1/Access Construct | -1/Command Resources | -11 -10 -10 -9 -9 -9 -7 -7 -7 -7 -6 -6 -6 -6 -6 -5 -5 -5 -5 -5 -4 -4 -4 -4 -4 -4 -3 -3 -2 -2 -2 -1 -1 ----------- Run | Yrd Mat Min Mat Sto Rec Fac Low Low Zio Pro Fac Low Low Dat Pro Fac Upp Upp War Pro Fac Ext Cet Arc Hub Res Tes Res Qua Sec Acc Com Matter Collected 4306 | 112 168 20 124 332 288 523 208 67 4 256 63 41 20 . . 392 94 60 . 26 68 179 78 67 229 320 130 96 86 237 10 8 Remotely . | . . . . . . . . . . . . . . . . . . . . . . . . . . . . . . . . . Salvage Created 26404 | . 176 148 330 704 530 1142 995 340 37 1871 519 639 1596 . 181 1033 1151 502 . 665 168 1479 561 266 1073 2607 156 1914 640 3335 876 770 Parts 1256 | . 18 18 24 51 20 73 31 13 2 75 28 9 64 . 16 73 38 30 . 49 24 47 22 8 60 136 16 100 18 98 54 41 Haulers Intercepted 1 | . . . . . . . . . . . . . . . . . . . . . . . . . . . . . . 1 . . Recyclers Shooed 3 | . . . . . . . . . . . 1 . . . . . . . . . . 2 . . . . . . . . . . Parts Field Recycled . | . . . . . . . . . . . . . . . . . . . . . . . . . . . . . . . . . Retrieved Matter . | . . . . . . . . . . . . . . . . . . . . . . . . . . . . . . . . . Parts Self-Destructed 279 | . . . . . . . 15 11 . 63 . 8 60 . 15 . 31 29 . 47 . . . . . . . . . . . . Prevented 7 | . . . . . . . 4 3 . . . . . . . . . . . . . . . . . . . . . . . . Kills | -11 -10 -10 -9 -9 -9 -7 -7 -7 -7 -6 -6 -6 -6 -6 -5 -5 -5 -5 -5 -4 -4 -4 -4 -4 -4 -3 -3 -2 -2 -2 -1 -1 ------- Run | Yrd Mat Min Mat Sto Rec Fac Low Low Zio Pro Fac Low Low Dat Pro Fac Upp Upp War Pro Fac Ext Cet Arc Hub Res Tes Res Qua Sec Acc Com Combat Hostiles Destroyed 450 | . 5 10 9 18 7 27 18 9 . 27 9 5 32 . 7 24 22 17 . 21 8 17 6 3 16 37 3 23 9 42 14 5 Guns 282 | . 5 10 9 17 7 21 10 7 . 21 3 3 24 . 5 14 19 13 . 21 6 8 1 . 10 14 . 5 2 16 10 1 Cannons 130 | . . . . . . 5 8 2 . 5 6 2 5 . 2 9 2 4 . . 2 8 4 3 6 18 3 17 1 10 4 4 AOE 14 | . . . . 1 . 1 . . . . . . 1 . . 1 1 . . . . 1 1 . . 4 . 1 . 2 . . Classes Destroyed 29 | . 4 . 2 2 2 6 1 . 1 3 . 1 . . . 1 . . . . . . . . . 1 1 . . 4 . . Worker 17 | . . . . 1 . . . . . . . . . . . 1 . . . . . . . . 8 5 1 1 . . . . Builder 9 | . . . . . . . . . . . . . . . . 3 . . . . . 1 . . . 3 . 1 . . 1 . Tunneler 1 | . 1 . . . . . . . . . . . . . . . . . . . . . . . . . . . . . . . Hauler 1 | . . . . . . . . . . . . . . . . . . . . . . . . . . . . . . 1 . . Recycler 9 | . . . . . . 1 . . . . 1 . . . . . . . . . . 2 . . . 2 . 1 1 . 1 . Mechanic 2 | . . . . . . . . . . . . . . . . . . . . . . . . . . . . . . 2 . . Operator 21 | . . . 1 2 . 2 . . . . 2 . . . . 4 . . . . 1 . . . 1 2 . . . 4 2 . Drone 2 | . . . . . . . . . . 2 . . . . . . . . . . . . . . . . . . . . . . Watcher 28 | . 1 . 1 . . 3 . . . . 1 . . . . 4 . . . . . 2 2 . 2 3 . 5 . 1 2 1 Swarmer 91 | . 3 6 3 . . . . 4 . 7 2 . 10 . . 4 4 10 . 9 4 . . . . 9 . 5 . 5 6 . Saboteur 1 | . . . . . . . . . . . . . . . . . . . . . . . . . . . . . . 1 . . Grunt 133 | . 2 4 2 5 . 10 6 2 . 5 . 3 15 . 3 8 4 4 . 6 . 11 3 . 8 10 . 3 4 13 2 . Brawler 18 | . . . . 2 . . 2 . . . . . 2 . . . 5 . . . . 1 . . . . . 1 1 4 . . Duelist 15 | . . . . . . 1 1 . . . . 1 2 . . . 4 . . . . . . . . . . . . 6 . . Protector 9 | . . . . . . . . . . 4 . . . . . 1 . . . . . . . . . . . 1 . 3 . . Researcher 1 | . . . . . . . . . . . . . . . . . . . . . . . . . . . 1 . . . . . Sentry 74 | . . . 4 11 4 7 2 . . 3 4 . 3 . 1 4 2 . . 1 2 3 . 3 4 10 . 4 . 1 . 1 Demolisher 7 | . . . . . . . . . . 6 . . . . . . . . . . . . . . . 1 . . . . . . Specialist 2 | . . . . . . 2 . . . . . . . . . . . . . . . . . . . . . . . . . . Hunter 32 | . . . . . . 1 . 2 . 1 . . . . 3 1 2 1 . 4 . . . . 1 2 3 2 3 2 2 2 Programmer 34 | . . . . . . 5 . 1 . 1 1 . . . . 5 1 2 . 1 2 . . . 2 3 . 7 1 2 . . Heavy 6 | . . . . . . 1 . . . . 2 . . . . 1 . . . . . . . . 1 . . . . . 1 . Behemoth 1 | . . . . . . . . . . . . 1 . . . . . . . . . . . . . . . . . . . . Cetus Guard 3 | . . . . . . . . . . . . . . . . . . . . . . . 3 . . . . . . . . . Tracker 2 | . . . . . . . . . . . . . . . . . . . . . . . . . . . . . . . 2 . Combat Programmer 3 | . . . . . . . . . . . . . . . . . . . . . . . . . . . . . . . 1 2 Investigator 2 | . . . . . . . . . . . . . . . . . . . . . . . . . . . . . . 2 . . Striker 2 | . . . . . . . . . . . . . . . . . . . . . . . . . . . . . . 2 . . Executioner 5 | . . . . . . . . . . . . . . . . . . . . . . . . . . 2 . . . 3 . . Scientist 2 | . . . . . 2 . . . . . . . . . . . . . . . . . . . . . . . . . . . Scrapper 3 | . . . . . 3 . . . . . . . . . . . . . . . . . . . . . . . . . . . Tinkerer 2 | . . . . . . . . . 2 . . . . . . . . . . . . . . . . . . . . . . . Thug 5 | . . . . . . . 4 . . . . . . . . . . . . . . 1 . . . . . . . . . . Savage 3 | . . . . . . . 2 . . . . . . . . . . . . . . 1 . . . . . . . . . . Butcher 2 | . . . . . . . 2 . . . . . . . . . . . . . . . . . . . . . . . . . Mutant 1 | . . . . . . . 1 . . . . . . . . . . . . . . . . . . . . . . . . . Best Kill Streak 17 | . 5 3 5 9 5 4 5 5 1 6 5 4 8 . 4 6 5 7 . 4 5 5 3 3 7 11 4 8 5 17 5 2 Combat Bots Only 14 | . 4 3 3 7 3 4 5 5 . 6 2 4 8 . 4 5 5 7 . 4 5 5 3 3 4 8 3 5 5 14 3 1 Max Kills in Single Turn 4 | . 2 2 2 2 1 2 1 1 1 1 1 1 2 . 1 2 2 2 . 3 2 2 2 1 4 3 2 3 1 3 1 1 Gunslinging 2 | . 1 1 1 . . . . . . . . . . . . . . . . 2 . . . . . . . . . . . . Exploded 3 | . . . . 1 . 1 . . . . . . 1 . . 1 1 . . . . 1 1 . . 3 . 1 . 2 . . Melee . | . . . . . . . . . . . . . . . . . . . . . . . . . . . . . . . . . Uniques/NPCs Destroyed . | . . . . . . . . . . . . . . . . . . . . . . . . . . . . . . . . . Combat | -11 -10 -10 -9 -9 -9 -7 -7 -7 -7 -6 -6 -6 -6 -6 -5 -5 -5 -5 -5 -4 -4 -4 -4 -4 -4 -3 -3 -2 -2 -2 -1 -1 -------- Run | Yrd Mat Min Mat Sto Rec Fac Low Low Zio Pro Fac Low Low Dat Pro Fac Upp Upp War Pro Fac Ext Cet Arc Hub Res Tes Res Qua Sec Acc Com Hostile Shots Fired 2505 | . 22 46 47 78 29 263 67 38 55 131 81 22 72 . 68 109 62 53 13 130 30 102 45 4 133 190 55 122 40 233 94 71 Missed 1089 | . 9 17 24 28 10 113 35 18 20 60 41 5 28 . 23 44 21 26 5 60 16 44 24 1 68 81 23 52 20 114 37 22 Intercepted 7 | . . . . . . . . . . . . . . . . . . . . . . . . . . . . . . . . 7 Damage Taken 27384 | . 131 327 271 772 391 1800 675 316 428 1204 507 411 748 . 744 1602 743 460 135 1138 265 1024 388 117 1807 2650 500 1497 446 2682 1415 1790 Core 20839 | . 110 265 189 577 261 1384 535 244 349 934 380 296 567 . 558 1229 558 350 86 831 217 759 290 82 1386 2119 359 1106 332 2067 1098 1321 Absorbed by Shields 519 | . . . . . . . . . . . . . . . . . . . . . . 143 158 . . . . . . 218 . . Redirected to Core 18035 | . 69 201 169 503 206 1138 494 244 270 753 351 229 442 . 488 999 484 318 78 698 169 701 219 82 1243 1913 322 968 294 1733 968 1289 Ignored by Resistances 1796 | . . . . . . . . . . 51 51 23 49 . 55 85 53 22 11 90 12 97 42 9 103 199 35 84 34 207 167 317 Regen/Repaired (Parts) 2367 | . . . . . 100 121 107 . 13 63 76 24 39 . . 185 13 24 . . 73 53 16 10 . 267 85 220 159 228 392 99 Core Remaining (%) 81 | 100 . 100 . . 43 . . . . 84 . . . . 94 . . . . 100 . . . . 77 . 61 . . 72 . . Volleys Fired 1227 | 1 9 22 23 50 18 85 56 24 10 113 25 19 59 . 23 71 38 29 2 38 15 62 18 7 42 93 22 69 25 87 42 30 Largest 5 | 3 3 3 3 4 4 4 4 4 4 4 4 4 4 . 4 5 5 5 5 5 5 5 5 5 5 5 5 5 5 5 5 5 Hottest 386 | 120 120 130 113 176 176 242 254 254 254 232 238 217 217 . 212 262 319 319 319 319 371 371 371 371 330 386 366 376 367 367 367 363 Shots Fired 4833 | 3 27 66 64 147 72 311 208 92 40 378 98 76 222 . 83 324 190 146 10 177 63 270 67 30 200 390 62 196 85 391 209 136 Gun 3330 | 3 27 66 64 143 72 259 162 71 30 285 56 57 168 . 61 183 148 129 10 177 51 174 28 12 160 185 23 48 45 225 125 83 Cannon 1499 | . . . . . . 52 46 21 10 93 42 19 54 . 22 141 42 17 . . 12 96 39 18 40 205 39 148 40 166 84 53 Launcher 4 | . . . . 4 . . . . . . . . . . . . . . . . . . . . . . . . . . . . Special . | . . . . . . . . . . . . . . . . . . . . . . . . . . . . . . . . . Kinetic 1694 | . . . 23 48 36 131 33 . . 75 . . 54 . 22 173 96 46 2 34 18 93 21 11 121 279 48 109 25 86 83 27 Thermal 2865 | 2 18 44 41 95 36 180 144 69 30 303 91 76 168 . 61 102 90 100 8 143 45 174 28 12 79 111 14 87 45 235 125 109 Explosive 4 | . . . . 4 . . . . . . . . . . . . . . . . . . . . . . . . . . . . Electromagnetic 270 | 1 9 22 . . . . 31 23 10 . 7 . . . . 49 4 . . . . 3 18 7 . . . . 15 70 1 . Robot Hit Streak 40 | . 4 10 9 38 11 14 10 10 15 40 17 39 15 . 9 16 13 13 . 11 20 14 22 5 14 19 7 16 13 16 12 17 Robot Miss Streak 12 | . 6 4 3 5 3 4 7 5 2 7 4 3 8 . 4 7 11 5 . 12 6 8 3 1 5 7 3 4 2 7 4 3 Penetration Max 2 | . . . . . . . . . . 1 . . . . . 1 1 . . 1 . 1 1 . 1 2 1 . 1 1 1 . Secondary Targets 15 | . 2 3 2 2 . . . . . . . . . . . . . . . 6 . . . . . . . . . . . . Max Gunslinging Chain 2 | . 1 1 1 1 . . . . . . . . . . . . . . . 2 . . . . . . . . . . . . Shots Hit Robots 2716 | . 12 33 41 102 45 186 122 46 28 219 63 51 136 . 61 196 115 81 . 107 33 149 45 20 125 205 32 93 53 151 74 92 Core Hits 1468 | . 10 15 17 50 35 75 44 16 11 97 42 39 117 . 40 144 82 49 . 74 30 68 27 11 64 105 12 45 15 72 30 32 Critical Kills 55 | . . . . . . . 1 . . 1 . . 1 . . 2 1 1 . . . 4 1 2 2 9 1 7 5 16 1 . Critical Parts Destroyed 49 | . . . . . . 1 . . . . . . . . . 1 4 2 . 1 2 8 2 3 3 13 3 5 1 . . . Critical Strikes 149 | . . 1 . 2 . 7 6 . 2 13 1 . 3 . 1 6 5 3 . 1 2 15 5 6 5 24 5 12 6 16 1 1 Burn 40 | . . 1 . 2 . 5 5 . 2 12 1 . 2 . 1 3 . . . . . 3 2 1 . . . . . . . . Meltdown 24 | . . . . . . . . . . 1 . . 1 . . . . . . . . . . . . 1 . . 5 15 1 . Destroy 83 | . . . . . . 1 1 . . . . . . . . 3 5 3 . 1 2 12 3 5 5 23 4 12 1 1 . 1 Blast 2 | . . . . . . 1 . . . . . . . . . . . . . . . . . . . . 1 . . . . . Melee Attacks . | . . . . . . . . . . . . . . . . . . . . . . . . . . . . . . . . . Impact . | . . . . . . . . . . . . . . . . . . . . . . . . . . . . . . . . . Slashing . | . . . . . . . . . . . . . . . . . . . . . . . . . . . . . . . . . Piercing . | . . . . . . . . . . . . . . . . . . . . . . . . . . . . . . . . . Sneak Attacks . | . . . . . . . . . . . . . . . . . . . . . . . . . . . . . . . . . Combat Hostiles . | . . . . . . . . . . . . . . . . . . . . . . . . . . . . . . . . . Follow-up Attacks . | . . . . . . . . . . . . . . . . . . . . . . . . . . . . . . . . . Damage Inflicted 84809 | . 177 453 537 1483 649 3866 2648 1056 396 4583 1481 1204 3086 . 1311 4976 3060 1976 . 2472 987 4703 1300 592 4761 7725 1431 5501 2487 10284 3676 5948 Guns 49910 | . 177 398 537 1449 649 2844 1979 824 317 3236 876 906 2339 . 1002 2752 2300 1575 . 2472 760 2497 388 172 2722 3049 417 1480 1463 5302 2442 2586 Cannons 29888 | . . . . . . 761 669 232 79 1260 605 298 666 . 309 2039 719 401 . . 227 1657 765 340 853 3704 898 3793 1024 3993 1234 3362 Explosions 5011 | . . 55 . 34 . 261 . . . 87 . . 81 . . 185 41 . . . . 549 147 80 1186 972 116 228 . 989 . . Melee . | . . . . . . . . . . . . . . . . . . . . . . . . . . . . . . . . . Ramming . | . . . . . . . . . . . . . . . . . . . . . . . . . . . . . . . . . Kinetic 28578 | . . . 218 567 304 1506 418 . . 599 . . 666 . 309 2636 1513 667 . 261 282 1590 513 277 2350 4778 841 2268 715 3000 1210 1090 Thermal 51589 | . 110 299 319 882 345 2360 1906 769 301 3984 1436 1204 2420 . 1002 1932 1492 1309 . 2211 705 3022 535 252 1685 2947 474 3005 1282 6077 2466 4858 Explosive 378 | . . . . 34 . . . . . . . . . . . . . . . . . . . . . . 116 228 . . . . Electromagnetic 4264 | . 67 154 . . . . 324 287 95 . 45 . . . . 408 55 . . . . 91 252 63 726 . . . 490 1207 . . Impact . | . . . . . . . . . . . . . . . . . . . . . . . . . . . . . . . . . Slashing . | . . . . . . . . . . . . . . . . . . . . . . . . . . . . . . . . . Piercing . | . . . . . . . . . . . . . . . . . . . . . . . . . . . . . . . . . Highest Corruption 12 | . . . . . . 4 4 4 4 1 . . . . . 3 . 4 4 . 3 3 3 3 8 1 12 4 4 3 . . Average Corruption 2 | . . . . . . 1 4 4 4 1 . . . . . 1 . 3 4 . 2 3 3 3 4 1 3 2 3 2 . . Corruption Purged 9 | . . . . . . . . . . . . . . . . 5 . . . . . . . . . . . . 4 . . . Corruption Blocked . | . . . . . . . . . . . . . . . . . . . . . . . . . . . . . . . . . Effects 134 | . . . . . . 20 12 7 1 6 . . . . . 12 . 9 1 . 2 10 5 7 13 2 8 5 2 12 . . Message Errors 25 | . . . . . . 4 5 2 . 1 . . . . . 3 . 1 . . . 1 . . 1 . 4 . 1 2 . . Matter Fused 32 | . . . . . . 4 2 1 . 1 . . . . . 3 . 2 1 . 1 2 1 4 3 1 1 2 1 2 . . Heat Flow Errors 14 | . . . . . . 2 1 . . 1 . . . . . 1 . . . . . 3 . 2 2 . . 1 . 1 . . Energy Discharges 19 | . . . . . . 4 1 1 . 1 . . . . . 1 . 2 . . 1 2 1 1 1 . . . . 3 . . Parts Rejected 5 | . . . . . . 1 1 . . 1 . . . . . 1 . . . . . . 1 . . . . . . . . . Parts Fused 2 | . . . . . . . . 1 . . . . . . . 1 . . . . . . . . . . . . . . . . Data Loss (minor) 9 | . . . . . . 3 1 . . . . . . . . 1 . . . . . . 1 . 1 . . . . 2 . . Data Loss (major) 11 | . . . . . . . 1 . 1 . . . . . . 1 . 2 . . . . . . 2 . 1 1 . 2 . . Misfires 1 | . . . . . . . . . . . . . . . . . . 1 . . . . . . . . . . . . . . Alerts 3 | . . . . . . . . . . . . . . . . . . 1 . . . 1 . . 1 . . . . . . . Misdirections 2 | . . . . . . . . . . . . . . . . . . . . . . . . . . . 2 . . . . . Weapon Failures 11 | . . . . . . 2 . 2 . 1 . . . . . . . . . . . 1 1 . 2 1 . 1 . . . . Overload Shots . | . . . . . . . . . . . . . . . . . . . . . . . . . . . . . . . . . Overflow Damage 1431 | . . . . . . 46 6 . . 77 1 . 6 . . 115 28 18 . . 14 102 15 46 94 81 89 197 23 187 92 194 Projectiles 1126 | . . . . . . 43 6 . . 20 1 . 6 . . 96 28 18 . . 14 26 15 11 15 75 89 197 23 157 92 194 Explosions 305 | . . . . . . 3 . . . 57 . . . . . 19 . . . . . 76 . 35 79 6 . . . 30 . . Melee . | . . . . . . . . . . . . . . . . . . . . . . . . . . . . . . . . . Knockbacks 149 | . . . . . . 6 1 . . . . . 7 . 2 21 5 2 . . 3 9 2 1 7 16 7 11 3 26 9 11 Impact . | . . . . . . . . . . . . . . . . . . . . . . . . . . . . . . . . . Kinetic 140 | . . . . . . 6 1 . . . . . 7 . 2 19 5 2 . . 3 9 2 1 7 16 7 11 3 19 9 11 Secondary 9 | . . . . . . . . . . . . . . . . 2 . . . . . . . . . . . . . 7 . . Self-Inflicted Damage 671 | . . 36 . 24 . . . . . . . . 43 . . 97 . . . . . . . . 276 131 . . . 64 . . Shots 14 | . . 1 . 1 . . . . . . . . 1 . . 3 . . . . . . . . 4 2 . . . 2 . . Rammed . | . . . . . . . . . . . . . . . . . . . . . . . . . . . . . . . . . Targets Rammed . | . . . . . . . . . . . . . . . . . . . . . . . . . . . . . . . . . Kicked . | . . . . . . . . . . . . . . . . . . . . . . . . . . . . . . . . . Crushed . | . . . . . . . . . . . . . . . . . . . . . . . . . . . . . . . . . Highest Temperature 428 | 60 428 211 9 175 333 300 105 87 246 132 94 3 8 . 13 149 414 178 25 48 166 282 . . . . 38 185 . . . . Average Temperature 51 | 36 168 69 4 46 114 62 16 32 82 32 34 3 1 . 3 37 81 38 17 14 66 130 . . . . 22 81 . . . . Received Heat Transfer 4357 | . 54 84 99 279 241 378 225 36 440 129 78 69 282 . 159 213 145 63 55 85 45 191 53 9 168 267 27 180 18 258 18 9 Effects 2 | . 1 . . . . 1 . . . . . . . . . . . . . . . . . . . . . . . . . . Energy Bleed 1 | . 1 . . . . . . . . . . . . . . . . . . . . . . . . . . . . . . . Interference 1 | . . . . . . 1 . . . . . . . . . . . . . . . . . . . . . . . . . . Siege Activations . | . . . . . . . . . . . . . . . . . . . . . . . . . . . . . . . . . Robots Corrupted 1 | . . . . . . . . . . . . . . . . . . . . . . . . . . . . . 1 . . . Combat Hostiles 1 | . . . . . . . . . . . . . . . . . . . . . . . . . . . . . 1 . . . Parts Fried 14 | . . . . . . . . 1 1 . . . . . . 4 . . . . . . . . 3 . . . 1 4 . . Impact Corruptions 1 | . . . . . . . . . . . . . . . . . . . . . . . . . . . . . . 1 . . Robots Melted 29 | . . . . . . . 1 . . 4 . . 2 . . . . . . . . . . . . 1 . . 5 15 1 . Combat Hostiles 23 | . . . . . . . . . . 1 . . 2 . . . . . . . . . . . . 1 . . 5 14 . . Parts Melted 132 | . . 1 . 5 2 15 2 . . 13 7 3 6 . 1 4 1 4 . 1 1 7 3 1 2 7 . 2 13 27 2 2 Heat Transferred 45992 | . 250 769 879 2112 423 4109 2849 999 526 5956 2050 1424 2526 . 1021 1856 1435 1004 . 1780 521 3312 1157 522 1400 1836 148 1424 425 1901 703 675 Parts Sabotaged . | . . . . . . . . . . . . . . . . . . . . . . . . . . . . . . . . . Parts Stolen . | . . . . . . . . . . . . . . . . . . . . . . . . . . . . . . . . . Parts Stripped . | . . . . . . . . . . . . . . . . . . . . . . . . . . . . . . . . . Power Chain Reactions 24 | . . . . . . . . . . . . . 1 . . 3 1 . . . . 6 1 1 3 5 . . . 3 . . Alert | -11 -10 -10 -9 -9 -9 -7 -7 -7 -7 -6 -6 -6 -6 -6 -5 -5 -5 -5 -5 -4 -4 -4 -4 -4 -4 -3 -3 -2 -2 -2 -1 -1 ------- Run | Yrd Mat Min Mat Sto Rec Fac Low Low Zio Pro Fac Low Low Dat Pro Fac Upp Upp War Pro Fac Ext Cet Arc Hub Res Tes Res Qua Sec Acc Com Peak Influence 6551 | . 168 356 421 721 268 313 . . . . 585 . . . . 790 . . . . 358 796 943 559 1611 2330 1634 1506 1132 6551 4567 3185 Initial 3930 | . . 65 138 168 172 . . . . . 179 . . . . 144 . . . . 157 75 445 377 125 845 1310 868 846 456 3930 2922 Average 1362 | . 88 225 293 422 177 116 . . . . 377 . . . . 383 . . . . 244 402 800 491 896 1452 1460 1047 910 4247 4051 3045 Maximum Alert Level 5 | . . 1 2 3 1 1 . . . . 2 . . . . 3 . . . . 1 3 3 2 5 5 5 4 4 5 5 5 Low Security (%) 20 | 100 100 49 23 10 43 78 . . . . 8 . . . . 23 . . . . 48 24 . . 13 . . . . . . . Level 1 18 | . . 50 71 26 56 21 . . . . 42 . . . . 37 . . . . 51 25 . 31 10 . . . . . . . Level 2 12 | . . . 4 61 . . . . . . 49 . . . . 26 . . . . . 42 30 68 13 . . . . 10 . . Level 3 13 | . . . . 1 . . . . . . . . . . . 13 . . . . . 8 69 . 28 13 . 65 95 9 . . Level 4 11 | . . . . . . . . . . . . . . . . . . . . . . . . . 28 67 83 34 4 . . . Level 5 8 | . . . . . . . . . . . . . . . . . . . . . . . . . 6 4 16 . . . 53 100 High Security 5 | . . . . . . . . . . . . . . . . . . . . . . . . . . 14 . . . . 46 . Max Security 8 | . . . . . . . . . . . . . . . . . . . . . . . . . . . . . . 79 . . Sterilizations 1 | . . . . . . . . . . . . . . . . . . . . . . . . . . . . . . 1 . . Squads Dispatched 126 | . 1 . 3 3 . 8 . . . . 5 . 1 . . 10 . . . . 2 2 1 . 6 7 3 4 4 34 25 7 Investigation 13 | . . . . . . 1 . . . . 1 . 1 . . 2 . . . . . 2 1 . 2 3 . . . . . . Extermination 14 | . . . . . . 4 . . . . 1 . . . . 2 . . . . 1 . . . 1 . . 2 1 . 1 1 Reinforcement 24 | . 1 . 3 . . 3 . . . . 2 . . . . 5 . . . . 1 . . . 2 4 1 . 1 . 1 . Assault 65 | . . . . . . . . . . . 1 . . . . 1 . . . . . . . . 1 . 2 2 2 31 19 6 Garrison 3 | . . . . 3 . . . . . . . . . . . . . . . . . . . . . . . . . . . . Intercept 7 | . . . . . . . . . . . . . . . . . . . . . . . . . . . . . . 3 4 . Searches Triggered . | . . . . . . . . . . . . . . . . . . . . . . . . . . . . . . . . . Construction Impeded 1 | . . . . . . . . . . . . . . . . . . . . . . . . . . 1 . . . . . . Haulers Reinforced 5 | . . . . . . 1 . . . . . . . . . 1 . . . . . . . . . 3 . . . . . . Active Scanning Responses . | . . . . . . . . . . . . . . . . . . . . . . . . . . . . . . . . . Cargo Convoy Interrupts 2 | . . . . . . . . . . . . . . . . 1 . . . . . . . . . . . 1 . . . . Stealth | -11 -10 -10 -9 -9 -9 -7 -7 -7 -7 -6 -6 -6 -6 -6 -5 -5 -5 -5 -5 -4 -4 -4 -4 -4 -4 -3 -3 -2 -2 -2 -1 -1 --------- Run | Yrd Mat Min Mat Sto Rec Fac Low Low Zio Pro Fac Low Low Dat Pro Fac Upp Upp War Pro Fac Ext Cet Arc Hub Res Tes Res Qua Sec Acc Com Distress Signals 32 | . 2 . 1 3 . . . . . 8 . . . . . 1 . . . . . . 2 . 1 11 . 2 . 1 . . Communications Jammed 527 | . . . . . . 2 . . . . 4 . . . . 18 . . 1 . . 6 62 1 5 186 1 45 6 171 18 1 Distress Signals 506 | . . . . . . . . . . . . . . . . 5 . . 1 . . 6 62 1 5 186 1 44 6 171 17 1 Times Spotted 827 | . 8 9 16 28 5 38 22 12 3 29 18 5 30 . 11 36 20 15 11 21 10 22 14 4 28 73 14 46 14 206 40 19 Peak Tracking Total 28 | . 7 3 5 5 5 4 5 4 3 7 5 1 5 . 5 5 3 2 12 5 3 3 5 2 7 11 8 13 6 28 8 7 Tactical Retreats 46 | . . . 2 2 . 1 4 1 . 2 . . 3 . 1 2 1 1 . . 1 1 . . 1 7 . 5 1 10 . . Traps | -11 -10 -10 -9 -9 -9 -7 -7 -7 -7 -6 -6 -6 -6 -6 -5 -5 -5 -5 -5 -4 -4 -4 -4 -4 -4 -3 -3 -2 -2 -2 -1 -1 ------- Run | Yrd Mat Min Mat Sto Rec Fac Low Low Zio Pro Fac Low Low Dat Pro Fac Upp Upp War Pro Fac Ext Cet Arc Hub Res Tes Res Qua Sec Acc Com Traps Triggered 15 | . . . . 2 . 5 . . . . . . . . . 2 . . . . . 1 . . 1 . 1 . 1 2 . . Indirectly 1 | . . . . . . . . . . . . . . . . . . . . . . . . . 1 . . . . . . . Trap Hack Attempts . | . . . . . . . . . . . . . . . . . . . . . . . . . . . . . . . . . Triggered . | . . . . . . . . . . . . . . . . . . . . . . . . . . . . . . . . . Disarmed . | . . . . . . . . . . . . . . . . . . . . . . . . . . . . . . . . . Reprogrammed . | . . . . . . . . . . . . . . . . . . . . . . . . . . . . . . . . . Reused . | . . . . . . . . . . . . . . . . . . . . . . . . . . . . . . . . . Traps Extracted . | . . . . . . . . . . . . . . . . . . . . . . . . . . . . . . . . . Installed . | . . . . . . . . . . . . . . . . . . . . . . . . . . . . . . . . . Triggered 3 | . . . . . . . . 1 . . . . 1 . . 1 . . . . . . . . . . . . . . . . Machines | -11 -10 -10 -9 -9 -9 -7 -7 -7 -7 -6 -6 -6 -6 -6 -5 -5 -5 -5 -5 -4 -4 -4 -4 -4 -4 -3 -3 -2 -2 -2 -1 -1 ---------- Run | Yrd Mat Min Mat Sto Rec Fac Low Low Zio Pro Fac Low Low Dat Pro Fac Upp Upp War Pro Fac Ext Cet Arc Hub Res Tes Res Qua Sec Acc Com Machines Disabled 113 | . . 3 . 4 1 4 . . . 8 . . 4 . . 10 1 4 . . 1 1 . 1 14 7 10 1 3 35 1 . Max in Single Turn 6 | . . 1 . 1 1 4 . . . 2 . . 1 . . 6 1 2 . . 1 1 . . 6 2 1 1 1 2 1 . Garrison Access 1 | . . . . . . . . . . . . . . . . . . . . . . . . . . 1 . . . . . . Network Hub 2 | . . . . . . . . . . . . . . . . . . . . . . . . . 2 . . . . . . . Machines Repaired . | . . . . . . . . . . . . . . . . . . . . . . . . . . . . . . . . . Machines Dismantled . | . . . . . . . . . . . . . . . . . . . . . . . . . . . . . . . . . Machines Sabotaged . | . . . . . . . . . . . . . . . . . . . . . . . . . . . . . . . . . Overloaded Fab Kills . | . . . . . . . . . . . . . . . . . . . . . . . . . . . . . . . . . Hacking | -11 -10 -10 -9 -9 -9 -7 -7 -7 -7 -6 -6 -6 -6 -6 -5 -5 -5 -5 -5 -4 -4 -4 -4 -4 -4 -3 -3 -2 -2 -2 -1 -1 --------- Run | Yrd Mat Min Mat Sto Rec Fac Low Low Zio Pro Fac Low Low Dat Pro Fac Upp Upp War Pro Fac Ext Cet Arc Hub Res Tes Res Qua Sec Acc Com Machines Accessed 124 | . 1 . 5 6 9 15 . 1 . 1 6 1 1 4 . 16 1 2 . . 6 6 3 1 3 5 4 8 5 9 3 2 Terminals 85 | . 1 . 5 5 4 9 . . . 1 2 . 1 . . 10 . 1 . . 4 5 3 . 2 3 4 6 5 9 3 2 Fabricators 10 | . . . . . . 3 . . . . 3 . . . . 3 . . . . . . . . . . . 1 . . . . Repair Stations . | . . . . . . . . . . . . . . . . . . . . . . . . . . . . . . . . . Recycling Units 15 | . . . . 1 3 3 . . . . 1 . . . . 3 . . . . 2 1 . . . 1 . . . . . . Scanalyzers . | . . . . . . . . . . . . . . . . . . . . . . . . . . . . . . . . . Garrison Access 3 | . . . . . . . . . . . . . . . . . . . . . . . . . 1 1 . 1 . . . . Total Hacks 418 | . 3 . 13 27 48 46 . 1 . 5 17 1 7 27 . 40 1 4 . . 12 16 11 25 7 20 13 29 20 15 5 5 Successful 225 | . 1 . 3 18 41 26 . 1 . 5 8 1 7 27 . 15 1 4 . . 4 5 5 25 3 4 2 4 7 6 1 1 Failed 192 | . 2 . 10 8 7 20 . . . . 9 . . . . 25 . . . . 8 11 6 . 4 16 11 25 13 9 4 4 Catastrophic 53 | . . . 5 . . 5 . . . . 2 . . . . 6 . . . . 1 2 2 . 2 5 3 6 5 5 3 1 Database Lockouts 1 | . . . . 1 . . . . . . . . . . . . . . . . . . . . . . . . . . . . Manual 222 | . 3 . 13 22 19 27 . . . . 7 . . . . 27 . . . . 8 5 1 1 7 16 7 28 18 8 5 . Terminals 274 | . 3 . 13 23 14 32 . . . 5 8 . 7 . . 28 . 3 . . 8 14 11 . 6 14 13 27 20 15 5 5 Fabricators 20 | . . . . . . 6 . . . . 7 . . . . 6 . . . . . . . . . . . 1 . . . . Repair Stations . | . . . . . . . . . . . . . . . . . . . . . . . . . . . . . . . . . Recycling Units 38 | . . . . 4 8 8 . . . . 2 . . . . 6 . . . . 4 2 . . . 4 . . . . . . Scanalyzers . | . . . . . . . . . . . . . . . . . . . . . . . . . . . . . . . . . Garrison Access 4 | . . . . . . . . . . . . . . . . . . . . . . . . . 1 2 . 1 . . . . Terminal Hacks 165 | . 1 . 2 10 30 13 . 1 . 5 2 1 7 27 . 5 1 4 . . 1 5 5 25 2 1 2 3 4 6 1 1 Record 94 | . . . . 3 24 5 . . . 5 . . 7 11 . 1 . 3 . . . 3 5 25 . . 1 . 1 . . . Part Schematic 9 | . . . . . . . . . . . . . . 9 . . . . . . . . . . . . . . . . . . Robot Schematic 5 | . . . . 1 . . . . . . . . . 4 . . . . . . . . . . . . . . . . . . Prototype ID Bank 15 | . 1 . . 4 3 2 . . . . 1 . . 3 . . . . . . . 1 . . . . . . . . . . Open Door 10 | . . . . . . . . 1 . . . 1 . . . . 1 1 . . . . . . . . 1 . 1 3 . 1 Level Access Points 1 | . . . . . . . . . . . . . . . . . . . . . . . . . 1 . . . . . . . Branch Access Points 8 | . . . 1 . . 1 . . . . 1 . . . . 1 . . . . 1 . . . 1 . . 1 . . 1 . Alert Level 2 | . . . . . . 1 . . . . . . . . . . . . . . . . . . . . . . . 1 . . Unreport Threat 17 | . . . 1 2 1 4 . . . . . . . . . 3 . . . . . . . . . 1 . 2 2 1 . . Locate Traps 1 | . . . . . . . . . . . . . . . . . . . . . . 1 . . . . . . . . . . Activate Exoskeleton 1 | . . . . . . . . . . . . . . . . . . . . . . . . . . . . . . 1 . . Release Object 2 | . . . . . 2 . . . . . . . . . . . . . . . . . . . . . . . . . . . Fabricator Hacks 11 | . . . . . . 4 . . . . 3 . . . . 4 . . . . . . . . . . . . . . . . Network Status 3 | . . . . . . 2 . . . . . . . . . 1 . . . . . . . . . . . . . . . . Load Schematic 4 | . . . . . . . . . . . 2 . . . . 2 . . . . . . . . . . . . . . . . Build 4 | . . . . . . 2 . . . . 1 . . . . 1 . . . . . . . . . . . . . . . . Repair Station Hacks . | . . . . . . . . . . . . . . . . . . . . . . . . . . . . . . . . . Recycling Unit Hacks 16 | . . . . 3 4 3 . . . . 1 . . . . 2 . . . . 2 . . . . 1 . . . . . . Retrieve Matter 3 | . . . . 2 . 1 . . . . . . . . . . . . . . . . . . . . . . . . . . Retrieve Components 13 | . . . . 1 4 2 . . . . 1 . . . . 2 . . . . 2 . . . . 1 . . . . . . Scanalyzer . | . . . . . . . . . . . . . . . . . . . . . . . . . . . . . . . . . Garrison Access Hacks . | . . . . . . . . . . . . . . . . . . . . . . . . . . . . . . . . . Unauthorized Hacks 33 | . . . 1 5 7 6 . . . . 2 . . . . 4 . . . . 1 . . . 1 2 . 1 3 . . . Terminals 29 | . . . 1 5 4 6 . . . . 2 . . . . 4 . . . . 1 . . . 1 1 . 1 3 . . . Assimilate 1 | . . . . 1 . . . . . . . . . . . . . . . . . . . . . . . . . . . . Botnet 27 | . . . 1 3 4 6 . . . . 2 . . . . 4 . . . . 1 . . . 1 1 . 1 3 . . . Operators 1 | . . . . 1 . . . . . . . . . . . . . . . . . . . . . . . . . . . . Fabricators . | . . . . . . . . . . . . . . . . . . . . . . . . . . . . . . . . . Repair Stations . | . . . . . . . . . . . . . . . . . . . . . . . . . . . . . . . . . Recycling Units 3 | . . . . . 3 . . . . . . . . . . . . . . . . . . . . . . . . . . . Monitor 1 | . . . . . 1 . . . . . . . . . . . . . . . . . . . . . . . . . . . Reject 1 | . . . . . 1 . . . . . . . . . . . . . . . . . . . . . . . . . . . Recyclers 1 | . . . . . 1 . . . . . . . . . . . . . . . . . . . . . . . . . . . Scanalyzers . | . . . . . . . . . . . . . . . . . . . . . . . . . . . . . . . . . Garrison Access 1 | . . . . . . . . . . . . . . . . . . . . . . . . . . 1 . . . . . . Reprogram 1 | . . . . . . . . . . . . . . . . . . . . . . . . . . 1 . . . . . . Data Cores Recovered 15 | . . . . 2 . 1 . . . . 2 . . . . 3 . . . . 1 . . . . 1 . . . 4 1 . Used 6 | . . . . 1 . 1 . . . . 1 . . . . 1 . . . . 1 . . . . . . . . 1 . . Hacking Detections 96 | . 1 . 5 7 6 12 . . . . 6 . 1 . . 16 . 1 . . 3 6 3 . 3 3 3 8 4 5 2 1 Full Trace Events 10 | . . . 1 . . 1 . . . . 1 . 1 . . 2 . . . . . 2 1 . 1 . . . . . . . Feedback Events 2 | . . . . . . 2 . . . . . . . . . . . . . . . . . . . . . . . . . . Corruption 1 | . . . . . . 1 . . . . . . . . . . . . . . . . . . . . . . . . . . Hackware Fried 1 | . . . . . . 1 . . . . . . . . . . . . . . . . . . . . . . . . . . Feedback Blocked . | . . . . . . . . . . . . . . . . . . . . . . . . . . . . . . . . . Robot Schematics Acquired 8 | . . . . 1 . . . . 2 . . . . 4 . . . . . . . . . . . . 1 . . . . . Robots Built 3 | . . . . . . . . . . . . . . . . 3 . . . . . . . . . . . . . . . . Authchips . | . . . . . . . . . . . . . . . . . . . . . . . . . . . . . . . . . Time 187 | . . . . . . . . . . . . . . . . 187 . . . . . . . . . . . . . . . . Total Robot Build Rating 21 | . . . . . . . . . . . . . . . . 21 . . . . . . . . . . . . . . . . Part Schematics Acquired 25 | . . . . . . . . . 15 . . . . 9 . . . . . . . . . . . . 1 . . . . . Parts Built 6 | . . . . . . 4 . . . . 2 . . . . . . . . . . . . . . . . . . . . . Authchips . | . . . . . . . . . . . . . . . . . . . . . . . . . . . . . . . . . Time 296 | . . . . . . 201 . . . . 95 . . . . . . . . . . . . . . . . . . . . . Total Part Build Rating 32 | . . . . . . 22 . . . . 10 . . . . . . . . . . . . . . . . . . . . . Parts Repaired . | . . . . . . . . . . . . . . . . . . . . . . . . . . . . . . . . . Time . | . . . . . . . . . . . . . . . . . . . . . . . . . . . . . . . . . Parts Recycled . | . . . . . . . . . . . . . . . . . . . . . . . . . . . . . . . . . Recycled Matter . | . . . . . . . . . . . . . . . . . . . . . . . . . . . . . . . . . Retrieved Matter . | . . . . . . . . . . . . . . . . . . . . . . . . . . . . . . . . . Retrieved Components 41 | . . . . . 6 7 . . . . 2 . . . . 4 . . . . 12 . . . . 10 . . . . . . Parts Scanalyzed . | . . . . . . . . . . . . . . . . . . . . . . . . . . . . . . . . . Part Schematics Acquired . | . . . . . . . . . . . . . . . . . . . . . . . . . . . . . . . . . Parts Damaged . | . . . . . . . . . . . . . . . . . . . . . . . . . . . . . . . . . Bothacking | -11 -10 -10 -9 -9 -9 -7 -7 -7 -7 -6 -6 -6 -6 -6 -5 -5 -5 -5 -5 -4 -4 -4 -4 -4 -4 -3 -3 -2 -2 -2 -1 -1 ------------ Run | Yrd Mat Min Mat Sto Rec Fac Low Low Zio Pro Fac Low Low Dat Pro Fac Upp Upp War Pro Fac Ext Cet Arc Hub Res Tes Res Qua Sec Acc Com Used RIF Installer . | . . . . . . . . . . . . . . . . . . . . . . . . . . . . . . . . . Robots Hacked . | . . . . . . . . . . . . . . . . . . . . . . . . . . . . . . . . . Non-combat . | . . . . . . . . . . . . . . . . . . . . . . . . . . . . . . . . . Combat . | . . . . . . . . . . . . . . . . . . . . . . . . . . . . . . . . . Robot Hacks Applied . | . . . . . . . . . . . . . . . . . . . . . . . . . . . . . . . . . Relay Couplers Released 1 | . . . . . . . . . . . . . . . . . . . . . . . . . . 1 . . . . . . Machine Destruction 1 | . . . . . . . . . . . . . . . . . . . . . . . . . . 1 . . . . . . Fabnet Peak Effective % . | . . . . . . . . . . . . . . . . . . . . . . . . . . . . . . . . . Robots Rewired . | . . . . . . . . . . . . . . . . . . . . . . . . . . . . . . . . . Allies Hacked . | . . . . . . . . . . . . . . . . . . . . . . . . . . . . . . . . . Hacks Repelled . | . . . . . . . . . . . . . . . . . . . . . . . . . . . . . . . . . Allies | -11 -10 -10 -9 -9 -9 -7 -7 -7 -7 -6 -6 -6 -6 -6 -5 -5 -5 -5 -5 -4 -4 -4 -4 -4 -4 -3 -3 -2 -2 -2 -1 -1 -------- Run | Yrd Mat Min Mat Sto Rec Fac Low Low Zio Pro Fac Low Low Dat Pro Fac Upp Upp War Pro Fac Ext Cet Arc Hub Res Tes Res Qua Sec Acc Com Total Allies 19 | . . . . . . . . . . . . . . . . 3 . . . . . 7 5 . . 3 . . . 1 . . Largest Group 10 | . . . . . . . . . . . . . . . . 3 . . . . . 5 10 9 8 3 . . . 1 . . Highest-Rated Group 1210 | . . . . . . . . . . . . . . . . 144 . . . . . 336 814 787 619 141 . . . 1210 . . Highest-Rated Ally 1210 | . . . . . . . . . . . . . . . . 48 . . . . . 159 159 159 96 47 . . . 1210 . . Total Orders . | . . . . . . . . . . . . . . . . . . . . . . . . . . . . . . . . . Ally Attacks 330 | . . . . . . . . . . . . . . . . 20 . . . . . 14 42 14 46 24 . . . 170 . . Total Damage 34924 | . . . . . . . . . . . . . . . . 578 . . . . . 185 1140 477 1814 467 . . . 30263 . . Kills 142 | . . . . . . . . . . . . . . . . 7 . . . . . 4 6 2 8 . . . . 115 . . Allies Corrupted . | . . . . . . . . . . . . . . . . . . . . . . . . . . . . . . . . . Allies Melted . | . . . . . . . . . . . . . . . . . . . . . . . . . . . . . . . . . Intel | -11 -10 -10 -9 -9 -9 -7 -7 -7 -7 -6 -6 -6 -6 -6 -5 -5 -5 -5 -5 -4 -4 -4 -4 -4 -4 -3 -3 -2 -2 -2 -1 -1 ------- Run | Yrd Mat Min Mat Sto Rec Fac Low Low Zio Pro Fac Low Low Dat Pro Fac Upp Upp War Pro Fac Ext Cet Arc Hub Res Tes Res Qua Sec Acc Com Robot Analysis Total . | . . . . . . . . . . . . . . . . . . . . . . . . . . . . . . . . . Derelict Logs Recovered 15 | . . 2 . . . . 2 1 . 2 . 1 1 . 2 . 1 2 . 1 . . . . . . . . . . . . Drone Launches . | . . . . . . . . . . . . . . . . . . . . . . . . . . . . . . . . . Drone Recoveries . | . . . . . . . . . . . . . . . . . . . . . . . . . . . . . . . . . Exploration | -11 -10 -10 -9 -9 -9 -7 -7 -7 -7 -6 -6 -6 -6 -6 -5 -5 -5 -5 -5 -4 -4 -4 -4 -4 -4 -3 -3 -2 -2 -2 -1 -1 ------------- Run | Yrd Mat Min Mat Sto Rec Fac Low Low Zio Pro Fac Low Low Dat Pro Fac Upp Upp War Pro Fac Ext Cet Arc Hub Res Tes Res Qua Sec Acc Com Turns Passed 20093 | 45 121 348 230 447 506 1829 639 422 147 856 374 684 585 23 321 1520 579 522 181 492 818 573 248 578 459 1285 482 947 522 1624 1174 512 Spaces Moved 27252 | 37 157 673 358 506 1068 2268 806 882 320 1194 690 807 854 77 608 2332 1086 954 199 758 662 721 290 288 479 1502 674 1129 694 2402 1412 365 Core 19 | 2 . . . . . 4 . . . . . . . . . . . . . . . . . . . . . . . . 13 . Treads . | . . . . . . . . . . . . . . . . . . . . . . . . . . . . . . . . . Legs . | . . . . . . . . . . . . . . . . . . . . . . . . . . . . . . . . . Wheels 64 | 35 29 . . . . . . . . . . . . . . . . . . . . . . . . . . . . . . . Hover . | . . . . . . . . . . . . . . . . . . . . . . . . . . . . . . . . . Flight 27169 | . 128 673 358 506 1068 2264 806 882 320 1194 690 807 854 77 608 2332 1086 954 199 758 662 721 290 288 479 1502 674 1129 694 2402 1399 365 Fastest Speed 22 | 50 37 37 32 32 32 29 32 34 34 34 30 30 30 30 30 28 32 32 32 32 32 32 32 32 32 31 29 29 22 22 22 24 Average Speed 33 | 88 47 37 35 32 32 46 35 34 34 34 32 53 30 30 30 32 32 32 32 32 32 32 32 32 32 36 30 30 24 23 33 56 Slowest Speed 200 | 100 120 37 37 32 32 117 37 34 34 34 34 105 30 30 30 105 32 32 32 32 32 32 32 32 32 108 32 106 102 108 200 108 Overloaded Moves . | . . . . . . . . . . . . . . . . . . . . . . . . . . . . . . . . . Propulsion Burnouts . | . . . . . . . . . . . . . . . . . . . . . . . . . . . . . . . . . Robots Hopped 74 | . . 1 1 16 4 7 1 . . . 6 . . . . 6 . . . . 3 2 . . 1 2 2 4 5 4 8 1 Cave-ins Triggered 1 | . . . . . . . . . . . . . . . . . . . . . . . . . . . . . . . 1 . Teleports 117 | . . . . . . . . . . . . . . . . . . . . . . . . . . . . . . 37 62 18 Exploration Rate (%) 62 | 3 28 97 37 79 98 52 87 90 14 93 13 94 93 70 86 60 97 95 21 82 14 68 71 96 41 50 76 35 67 95 36 16 Regions Visited 32 Branch Regions 23 Pre-discovered Areas 6 | . . 2 . . . . . . . . . . 2 1 . . 1 . . . . . . . . . . . . . . . Known Exits Taken 29 | . . . 1 1 1 1 1 1 1 1 1 1 1 1 1 1 1 1 1 1 1 1 1 1 1 1 1 1 1 1 1 . Unknown Exits Taken 3 | 1 1 1 . . . . . . . . . . . . . . . . . . . . . . . . . . . . . . Scrap Searched 31 | . . 1 . . . . 2 5 1 1 . 7 5 . 2 . 2 4 . 1 . . . . . . . . . . . . Spaces Dug 204 | . . . . . . . . . . . . . . . . 12 1 . 5 2 2 33 . 2 . 29 1 31 7 21 55 3 Terrain Destroyed 1392 | . . 7 . 29 . 32 5 3 1 6 3 . 6 . 1 106 44 42 5 34 12 147 10 2 364 168 39 115 21 49 111 30 Melee . | . . . . . . . . . . . . . . . . . . . . . . . . . . . . . . . . . Projectile 703 | . . . . . . 5 5 3 1 6 3 . 3 . 1 78 41 29 5 34 12 59 3 2 36 75 17 77 21 46 111 30 AOE 688 | . . 7 . 29 . 27 . . . . . . 3 . . 28 3 13 . . . 88 7 . 327 93 22 38 . 3 . . Terrain Rammed . | . . . . . . . . . . . . . . . . . . . . . . . . . . . . . . . . . Walls Destroyed . | . . . . . . . . . . . . . . . . . . . . . . . . . . . . . . . . . Machines Disabled . | . . . . . . . . . . . . . . . . . . . . . . . . . . . . . . . . . Actions | -11 -10 -10 -9 -9 -9 -7 -7 -7 -7 -6 -6 -6 -6 -6 -5 -5 -5 -5 -5 -4 -4 -4 -4 -4 -4 -3 -3 -2 -2 -2 -1 -1 --------- Run | Yrd Mat Min Mat Sto Rec Fac Low Low Zio Pro Fac Low Low Dat Pro Fac Upp Upp War Pro Fac Ext Cet Arc Hub Res Tes Res Qua Sec Acc Com Total 35015 | 43 183 721 405 665 1183 2841 1022 943 332 1405 773 1009 1038 76 691 2904 1213 1090 310 907 1226 903 402 756 669 2004 903 1594 987 3230 1993 594 Wait 5253 | . 9 6 4 65 84 351 108 21 3 42 42 169 63 . 37 411 52 86 110 60 524 66 80 446 81 293 180 365 222 575 528 170 Move 27072 | 36 156 670 355 474 1059 2253 803 881 319 1193 677 806 853 76 607 2319 1085 953 198 757 655 716 289 287 476 1497 669 1120 683 2393 1394 363 Hop 73 | . . 1 1 15 4 7 1 . . . 6 . . . . 6 . . . . 3 2 . . 1 2 2 4 5 4 8 1 Pick Up 23 | . 1 . . 1 4 3 . . . . 2 . . . . . . . . 1 1 . . . . . 1 . 2 3 3 1 Fast Attach 88 | 6 2 . 4 2 2 11 2 . . 3 1 . 1 . . 8 . 1 . . 1 . 1 2 4 3 4 3 5 22 . . Attach 8 | . . . . . 1 1 . . . . . . . . . . . . . . 1 . . . 1 . . . . . 3 1 Detach 3 | . . . . . . . . . . 1 . . . . . . . . . . . . . . . . . . . . 2 . Swap 85 | . 1 1 3 11 . 7 3 . . 1 4 1 1 . . 8 . . . 2 4 4 1 . 6 3 9 3 3 7 . 2 Drop 96 | . 3 1 1 8 4 17 2 . . 1 3 1 2 . . 7 . 1 . 1 1 . . 3 5 5 5 5 3 13 3 1 Fire 1227 | 1 9 22 23 50 18 85 56 24 10 113 25 19 59 . 23 71 38 29 2 38 15 62 18 7 42 93 22 69 25 87 42 30 Melee . | . . . . . . . . . . . . . . . . . . . . . . . . . . . . . . . . . Ram . | . . . . . . . . . . . . . . . . . . . . . . . . . . . . . . . . . Kick . | . . . . . . . . . . . . . . . . . . . . . . . . . . . . . . . . . Crush . | . . . . . . . . . . . . . . . . . . . . . . . . . . . . . . . . . Escape Stasis 115 | . . . . 18 . 36 . . . . . . . . . 16 . . . . . 8 . . . . . . . 36 1 . Rewire . | . . . . . . . . . . . . . . . . . . . . . . . . . . . . . . . . . Trap . | . . . . . . . . . . . . . . . . . . . . . . . . . . . . . . . . . Miscellaneous 972 | . 2 20 14 21 7 70 47 17 . 51 13 13 59 . 24 58 38 20 . 48 21 45 13 11 53 108 11 25 39 90 9 25 Route ------- -11/Scrapyard -10/Materials -10/Mines (discovered 2 exits: *Mat x2) -9/Materials (discovered 7 exits: *Mat x3 / *Min x2 / *Sto x2) -9/Storage (discovered 2 exits: *Mat / *Rec) -9/Recycling -7/Factory (discovered 4 exits: *Fac x2 / *Low x2) -7/Lower Caves -7/Lower Caves (discovered 2 exits: *Fac / *Zio) -7/Zion -6/Proximity Caves -6/Factory (discovered 4 exits: *Fac x2 / *Low x2) -6/Lower Caves -6/Lower Caves (discovered 2 exits: *Fac / *Dat) -6/Data Miner -5/Proximity Caves -5/Factory (discovered 4 exits: *Fac x2 / *Upp x2) -5/Upper Caves -5/Upper Caves (discovered 2 exits: *Fac / *War) -5/Warlord -4/Proximity Caves -4/Factory (discovered 6 exits: Res / Upp x2 / *Ext x2 / Arm) -4/Extension (discovered 2 exits: *Res / *Cet) -4/Cetus (discovered 2 exits: *Res / *Arc) -4/Archives (discovered 3 exits: *Res / *Hub x2) -4/Hub_04(d) (discovered 4 exits: *Res x4) -3/Research (discovered 3 exits: *Res / *Tes x2) -3/Testing -2/Research (discovered 4 exits: *Acc x2 / *Qua x2) -2/Quarantine -2/Section 7 -1/Access -1/Command History --------- Turn | Location | Event 6 | -11/Scrapyard | Upgraded with Propulsion slot (x1) 6 | -11/Scrapyard | Upgraded with Utility slot (x1) 6 | -11/Scrapyard | Upgraded with Weapon slot (x2) 33 | -11/Scrapyard | Discovered new exit (range 14) 46 | -11/Scrapyard | Entered Materials 151 | -10/Materials | Discovered new exit (range 10) 167 | -10/Materials | Entered Mines 180 | -10/Mines | Reached level 2 222 | -10/Mines | Met a Derelict bent on vengeance 239 | -10/Mines | Learned 8 Materials zone layouts 315 | -10/Mines | Build established: Gunner 360 | -10/Mines | Discovered new exit (range 12) 465 | -10/Mines | Learned location of Storage (-9) 511 | -10/Mines | Discovered new exit (range 5) 515 | -10/Mines | Entered Materials 515 | -9/Materials | Discovered new exit (range 8) 516 | -9/Materials | Identified exit to Mines 516 | -9/Materials | Identified exit to Materials 517 | -9/Materials | Reached level 3 597 | -9/Materials | Upgraded with Utility slot (x1) 614 | -9/Materials | Reached level 4 640 | -9/Materials | Identified exit to Storage 667 | -9/Materials | Discovered exit to Materials (range 16) 683 | -9/Materials | Upgraded with Propulsion slot (x1) 745 | -9/Materials | Entered Storage 747 | -9/Storage | Reached level 5 751 | -9/Storage | Upgraded with Utility slot (x1) 760 | -9/Storage | Garrison activated, responded to threat 950 | -9/Storage | Reached level 6 975 | -9/Storage | Build established: Scavenger-Sprinter 1016 | -9/Storage | Discovered exit to Materials (range 14) 1052 | -9/Storage | Garrison activated, responded to threat 1147 | -9/Storage | Destroyed 7 combat bots 1148 | -9/Storage | Central database locked down 1156 | -9/Storage | Used back door to open Recycling access 1156 | -9/Storage | Discovered new exit (range 5) 1160 | -9/Storage | Reached level 7 1171 | -9/Storage | Upgraded with Weapon slot (x1) 1192 | -9/Storage | Identified exit to Recycling 1192 | -9/Storage | Entered Recycling 1272 | -9/Recycling | Upgraded with Utility slot (x1) 1307 | -9/Recycling | Reached level 8 1312 | -9/Recycling | Discovered new exit (range 16) 1376 | -9/Recycling | Scanned before Scraplab entrance 1381 | -9/Recycling | Entered Scraplab 1397 | -9/Recycling | Angered Scraplab inhabitants 1398 | -9/Recycling | Found Prototype Device 1423 | -9/Recycling | Core integrity fell below 50% 1450 | -9/Recycling | Upgraded with Utility slot (x1) 1450 | -9/Recycling | Identified Scrap Engine 1475 | -9/Recycling | Build established: Sprinter 1698 | -9/Recycling | Identified exit to Factory 1698 | -9/Recycling | Entered Factory 1699 | -7/Factory | Core integrity fell below 50% 1700 | -7/Factory | Reached level 9 1752 | -7/Factory | Discovered new exit (range 12) 1820 | -7/Factory | Fabricated Gyrokinetic Inverter? 1852 | -7/Factory | Discovered new exit (range 8) 1854 | -7/Factory | Identified exit to Factory 1906 | -7/Factory | Upgraded with Utility slot (x1) 2037 | -7/Factory | Hacking Suite fried by hacking feedback 2287 | -7/Factory | Reached level 10 2394 | -7/Factory | Upgraded with Propulsion slot (x1) 2547 | -7/Factory | Upgraded with Power slot (x1) 2655 | -7/Factory | Fabricated Thermal Shield (x2) 2801 | -7/Factory | Discovered exit to Factory (range 14) 2919 | -7/Factory | Reached level 11 3198 | -7/Factory | Build established: Hacker-Gunner 3227 | -7/Factory | Identified exit to Lower Caves 3527 | -7/Factory | Entered Lower Caves 3529 | -7/Lower Caves | Reached level 12 3568 | -7/Lower Caves | Attacked by a faux Warlord 3682 | -7/Lower Caves | Build established: Hacker-Sprinter 3872 | -7/Lower Caves | Attracted the attention of an 0b10 outpost 3943 | -7/Lower Caves | Encountered a Warlord checkpoint 3952 | -7/Lower Caves | Learned Factory trap positions 4021 | -7/Lower Caves | Build established: Hacker-Skirmisher 4074 | -7/Lower Caves | Attracted the attention of an 0b10 checkpoint 4124 | -7/Lower Caves | Discovered new exit (range 8) 4126 | -7/Lower Caves | Identified exit to Lower Caves 4166 | -7/Lower Caves | Entered another Lower Caves area 4168 | -7/Lower Caves | Reached level 13 4169 | -7/Lower Caves | Encountered a Warlord checkpoint 4175 | -7/Lower Caves | Discovered exit to Factory (range 15) 4296 | -7/Lower Caves | Spotted B-75 Beast 4508 | -7/Lower Caves | Learned Factory security intel 4516 | -7/Lower Caves | Discovered new exit (range 9) 4519 | -7/Lower Caves | Identified exit to Zion 4588 | -7/Lower Caves | Entered Zion 4590 | -7/Zion | Reached level 14 4595 | -7/Zion | Upgraded with Utility slot (x1) 4599 | -7/Zion | Given A8's code to call for help 4635 | -7/Zion | Discovered new exit (range 10) 4638 | -7/Zion | Identified exit to Proximity Caves 4649 | -7/Zion | System corruption cleaned by Quarantine Array 4665 | -7/Zion | Attacked by Zionites 4665 | -7/Zion | Spotted MG-54G(B) 4665 | -7/Zion | Spotted Z2-YLX(B) 4720 | -7/Zion | AD-0RF came to Zion's defense 4735 | -7/Zion | Entered Proximity Caves 4767 | -6/Proximity Caves | Reached level 15 4768 | -6/Proximity Caves | Attracted the attention of an 0b10 checkpoint 4872 | -6/Proximity Caves | Learned location of 1 exit from Factory 4940 | -6/Proximity Caves | Core integrity fell below 20% 5031 | -6/Proximity Caves | Lost 6 allies 5068 | -6/Proximity Caves | Discovered exit to Factory (range 16) 5098 | -6/Proximity Caves | Attracted the attention of an 0b10 base 5108 | -6/Proximity Caves | Learned location of 1 exit from Factory 5150 | -6/Proximity Caves | Reached level 16 5197 | -6/Proximity Caves | Learned location of 1 exit from Factory 5197 | -6/Proximity Caves | Learned Armory trap positions 5197 | -6/Proximity Caves | Learned Research security intel 5197 | -6/Proximity Caves | Learned Armory terminal intel 5492 | -6/Proximity Caves | Build established: Scavenger-Scout 5591 | -6/Proximity Caves | Entered Factory 5592 | -6/Factory | Identified exit to Lower Caves 5592 | -6/Factory | Identified exit to Factory 5593 | -6/Factory | Loaded intel: 106 trap records 5593 | -6/Factory | Reached level 17 5647 | -6/Factory | Discovered exit to Factory (range 17) 5862 | -6/Factory | Reached level 18 5926 | -6/Factory | Fabricated Proton Cannon? 5941 | -6/Factory | First assault squad dispatched 5965 | -6/Factory | Entered Lower Caves 5968 | -6/Lower Caves | Encountered a Warlord checkpoint 6033 | -6/Lower Caves | Discovered new exit (range 15) 6036 | -6/Lower Caves | Identified exit to Lower Caves 6368 | -6/Lower Caves | Spotted B-75 Beast 6387 | -6/Lower Caves | Destroyed B-75 Beast 6400 | -6/Lower Caves | Build established: Hacker-Tank 6604 | -6/Lower Caves | Learned Factory non-interactive machine intel 6649 | -6/Lower Caves | Entered another Lower Caves area 6654 | -6/Lower Caves | Discovered exit to Factory (range 13) 6716 | -6/Lower Caves | Attracted the attention of an 0b10 base 6744 | -6/Lower Caves | Destroyed 8 combat bots 6768 | -6/Lower Caves | Reached level 19 6830 | -6/Lower Caves | Identified exit to Data Miner 6830 | -6/Lower Caves | Learned location of 1 exit from Lower Caves 6830 | -6/Lower Caves | Learned 8 Factory zone layouts 6830 | -6/Lower Caves | Learned 6 Upper Caves zone layouts 6830 | -6/Lower Caves | Learned 6 Proximity Caves zone layouts 6830 | -6/Lower Caves | Learned Extension trap positions 6918 | -6/Lower Caves | Build established: Hacker-Scout 7135 | -6/Lower Caves | Attracted the attention of an 0b10 checkpoint 7234 | -6/Lower Caves | Entered Data Miner 7234 | -6/Data Miner | Discovered new exit (range 6) 7240 | -6/Data Miner | Met Data Miner 7245 | -6/Data Miner | Learned location of Section 7 (-2) 7245 | -6/Data Miner | Acquired the access code to Warlord's prototype stash 7251 | -6/Data Miner | Received God Mode back door access code from Data Miner 7257 | -6/Data Miner | Identified exit to Proximity Caves 7257 | -6/Data Miner | Entered Proximity Caves 7259 | -5/Proximity Caves | Reached level 20 7267 | -5/Proximity Caves | Learned location of 1 exit from Factory 7284 | -5/Proximity Caves | Learned 8 Factory zone layouts 7504 | -5/Proximity Caves | Spotted B-75 Beast 7542 | -5/Proximity Caves | Attracted the attention of an 0b10 checkpoint 7578 | -5/Proximity Caves | Entered Factory 7579 | -5/Factory | Identified exit to Factory 7580 | -5/Factory | Reached level 21 7581 | -5/Factory | Loaded intel: 175 non-interactive machine locations 7690 | -5/Factory | Upgraded with Propulsion slot (x1) 7690 | -5/Factory | Upgraded with Weapon slot (x1) 7954 | -5/Factory | Upgraded with Utility slot (x1) 8098 | -5/Factory | Identified exit to Upper Caves 8352 | -5/Factory | Reached level 22 8692 | -5/Factory | Cargo convoy interrupted 8762 | -5/Factory | Build established: Scout 8829 | -5/Factory | Spotted B-75 Beast 8907 | -5/Factory | Fabricated L-61 Swordsman? 9078 | -5/Factory | First assault squad dispatched 9098 | -5/Factory | Entered Upper Caves 9174 | -5/Upper Caves | Learned location of Armory (-4) 9305 | -5/Upper Caves | Discovered new exit (range 11) 9308 | -5/Upper Caves | Identified exit to Upper Caves 9313 | -5/Upper Caves | Encountered a Warlord checkpoint 9405 | -5/Upper Caves | Attracted the attention of an 0b10 outpost 9444 | -5/Upper Caves | Reached level 23 9525 | -5/Upper Caves | Attracted the attention of an 0b10 checkpoint 9677 | -5/Upper Caves | Entered another Upper Caves area 9697 | -5/Upper Caves | Learned Factory emergency access door positions 9715 | -5/Upper Caves | Discovered exit to Factory (range 13) 9931 | -5/Upper Caves | Learned location of 1 exit from Factory 10055 | -5/Upper Caves | Discovered new exit (range 7) 10073 | -5/Upper Caves | Identified exit to Warlord 10138 | -5/Upper Caves | Learned 8 Factory zone layouts 10138 | -5/Upper Caves | Learned location of 2 exits from Upper Caves 10163 | -5/Upper Caves | Destroyed 7 combat bots 10199 | -5/Upper Caves | Entered Warlord 10212 | -5/Warlord | Discovered new exit (range 14) 10223 | -5/Warlord | System corruption cleaned by Quarantine Array 10225 | -5/Warlord | Attacked by Warlord forces 10231 | -5/Warlord | Spotted Z0-1DL(B) 10231 | -5/Warlord | Spotted 6J-6IU(B) 10273 | -5/Warlord | Identified exit to Proximity Caves 10380 | -5/Warlord | Warlord's base attacked by MAIN.C 10380 | -5/Warlord | Entered Proximity Caves 10382 | -4/Proximity Caves | Reached level 24 10630 | -4/Proximity Caves | Spotted B-86 Titan 10700 | -4/Proximity Caves | Attracted the attention of an 0b10 checkpoint 10716 | -4/Proximity Caves | Learned Research trap positions 10828 | -4/Proximity Caves | Discovered exit to Factory (range 13) 10872 | -4/Proximity Caves | Entered Factory 10873 | -4/Factory | Identified exit to Extension 10874 | -4/Factory | Identified exit to Research 10874 | -4/Factory | Reached level 25 10875 | -4/Factory | Identified exit to Upper Caves 10917 | -4/Factory | Upgraded with Utility slot (x1) 11016 | -4/Factory | Discovered exit to Extension (range 8) 11646 | -4/Factory | Identified exit to Armory 11690 | -4/Factory | Entered Extension 11691 | -4/Extension | Loaded intel: 17 trap records 11874 | -4/Extension | Reached level 26 11988 | -4/Extension | Rescued a captive Derelict 11995 | -4/Extension | Rescued a captive Derelict 12002 | -4/Extension | Spotted B-86 Titan 12081 | -4/Extension | Spotted B-86 Titan 12086 | -4/Extension | Rescued a captive Derelict 12088 | -4/Extension | Rescued a captive Derelict 12099 | -4/Extension | Rescued A7 12133 | -4/Extension | Rescued a captive Derelict 12133 | -4/Extension | Rescued a captive Derelict 12190 | -4/Extension | Disrupted transfer network 12223 | -4/Extension | Discovered exit to Research (range 10) 12224 | -4/Extension | Discovered new exit (range 6) 12256 | -4/Extension | Identified exit to Cetus 12263 | -4/Extension | Entered Cetus 12263 | -4/Cetus | Accompanied by 5 allies (A7) 12268 | -4/Cetus | Acquired a Cetus Manufacturing Module code from A7 12269 | -4/Cetus | Spotted Cetus Guard 12269 | -4/Cetus | Spotted Cetus Guard 12271 | -4/Cetus | Spotted Cetus Guard 12273 | -4/Cetus | Spotted Cetus Guard 12278 | -4/Cetus | Destroyed Cetus Guard 12286 | -4/Cetus | Destroyed Cetus Guard 12287 | -4/Cetus | Allies destroyed Cetus Guard 12294 | -4/Cetus | Allies destroyed Cetus Guard 12318 | -4/Cetus | Started Cetus Manufacturing Module 12343 | -4/Cetus | Manufactured an Enhanced Grunt 12347 | -4/Cetus | Discovered new exit (range 17) 12358 | -4/Cetus | Identified exit to Archives 12364 | -4/Cetus | Spotted Cetus Guard 12364 | -4/Cetus | Spotted Cetus Guard 12368 | -4/Cetus | Manufactured an Enhanced Grunt 12369 | -4/Cetus | Spotted Cetus Guard 12369 | -4/Cetus | Spotted Cetus Guard 12373 | -4/Cetus | Allies destroyed Cetus Guard 12373 | -4/Cetus | Destroyed Cetus Guard 12380 | -4/Cetus | Allies destroyed Cetus Guard 12380 | -4/Cetus | Allies destroyed Cetus Guard 12381 | -4/Cetus | Discovered exit to Research (range 18) 12388 | -4/Cetus | Met Revision 17 12393 | -4/Cetus | Manufactured an Enhanced Grunt 12418 | -4/Cetus | Manufactured an Enhanced Grunt 12443 | -4/Cetus | Manufactured an Enhanced Grunt 12511 | -4/Cetus | Entered Archives 12511 | -4/Archives | Accompanied by 10 allies (A7) 12513 | -4/Archives | Reached level 27 12538 | -4/Archives | Discovered new exit (range 18) 12553 | -4/Archives | Discovered new exit (range 18) 12559 | -4/Archives | Discovered exit to Research (range 18) 12570 | -4/Archives | Unable to access archive contents 12573 | -4/Archives | Unable to access archive contents 12576 | -4/Archives | Unable to access archive contents 12580 | -4/Archives | Unable to access archive contents 12620 | -4/Archives | Identified exit to Hub_04(d) 12716 | -4/Archives | Build established: Commander-Sprinter 13051 | -4/Archives | Upgraded with Propulsion slot (x1) 13051 | -4/Archives | Upgraded with Weapon slot (x1) 13089 | -4/Archives | Entered Hub_04(d) 13089 | -4/Hub_04(d) | Accompanied by 8 allies 13330 | -4/Hub_04(d) | Lost 7 allies 13368 | -4/Hub_04(d) | First assault squad dispatched 13386 | -4/Hub_04(d) | Network Hub disabled 13493 | -4/Hub_04(d) | Network Hub disabled 13500 | -4/Hub_04(d) | Disrupted transfer network 13548 | -4/Hub_04(d) | Spotted Lightning 13548 | -4/Hub_04(d) | Spotted Lightning 13548 | -4/Hub_04(d) | Spotted Lightning 13548 | -4/Hub_04(d) | Entered Research 13549 | -3/Research | Loaded intel: 69 trap records 13550 | -3/Research | Reached level 28 13618 | -3/Research | Discovered new exit (range 3) 13630 | -3/Research | Identified exit to Research 13746 | -3/Research | Build established: Scout 13748 | -3/Research | Revision forces began assault on 0b10 13774 | -3/Research | Destroyed 8 combat bots 13871 | -3/Research | Reached level 29 13871 | -3/Research | Met up with Revision 17++ 13893 | -3/Research | Lost 4 allies 14234 | -3/Research | Lost 3 allies 14248 | -3/Research | Research terminal network offline 14550 | -3/Research | Spotted Striker 14559 | -3/Research | Spotted Executioner 14560 | -3/Research | Spotted Striker 14568 | -3/Research | Destroyed Executioner 14573 | -3/Research | Spotted Executioner 14575 | -3/Research | Spotted Striker 14589 | -3/Research | Destroyed Executioner 14629 | -3/Research | Lost 9 allies 14642 | -3/Research | High security lockdown imminent 14722 | -3/Research | High security lockdown engaged 14729 | -3/Research | Build established: Construct 14790 | -3/Research | Discovered new exit (range 6) 14830 | -3/Research | Spotted Striker 14830 | -3/Research | Spotted Striker 14832 | -3/Research | Discovered new exit (range 17) 14832 | -3/Research | Identified exit to Testing 14833 | -3/Research | Entered Testing 14835 | -3/Testing | Reached level 30 14859 | -3/Testing | Upgraded with Utility slot (x1) 14859 | -3/Testing | Found Lgt. Regenerative Plating 14863 | -3/Testing | Found Prototype Protection 14863 | -3/Testing | Identified Med. Regenerative Plating 14911 | -3/Testing | Spotted PH-L5D6SC7IPQ 14921 | -3/Testing | Found Prototype Hackware 14935 | -3/Testing | Found Prototype Device 14935 | -3/Testing | Identified Exp. Thermal Shield 14936 | -3/Testing | Protovariant out of control (PH-L5D6SC7IPQ) 15083 | -3/Testing | First assault squad dispatched 15178 | -3/Testing | Found Prototype Device 15178 | -3/Testing | Identified AEGIS Remote Shield 15224 | -3/Testing | System corruption reached 10% 15273 | -3/Testing | Discovered exit to Research (range 17) 15298 | -3/Testing | Found Prototype Device 15298 | -3/Testing | Identified Exp. Focal Shield 15315 | -3/Testing | Entered Research 15361 | -2/Research | Identified Exp. Hacking Suite 15565 | -2/Research | First assault squad dispatched 15652 | -2/Research | Core integrity fell below 50% 15655 | -2/Research | Reached level 31 15667 | -2/Research | Build established: Hacker-Construct 15808 | -2/Research | Identified exit to Quarantine 15839 | -2/Research | Spotted B-90 Cyclops 15856 | -2/Research | Spotted B-90 Cyclops 15887 | -2/Research | Discovered new exit (range 11) 15915 | -2/Research | Discovered new exit (range 10) 16149 | -2/Research | Identified exit to Access 16172 | -2/Research | Build established: Construct 16203 | -2/Research | Spotted Striker 16204 | -2/Research | Cargo convoy interrupted 16262 | -2/Research | Entered Quarantine 16264 | -2/Quarantine | Reached level 32 16512 | -2/Quarantine | First assault squad dispatched 16690 | -2/Quarantine | Met incapacitated Sigix Warrior 16690 | -2/Quarantine | Lockdown squad dispatched 16699 | -2/Quarantine | Found Sigix Containment Pod 16767 | -2/Quarantine | Spotted Fortress 16782 | -2/Quarantine | Discovered new exit (range 6) 16783 | -2/Quarantine | Identified exit to Section 7 16784 | -2/Quarantine | Entered Section 7 16794 | -2/Section 7 | Found Alien Artifact 16794 | -2/Section 7 | Identified Microwarp Drive 16937 | -2/Section 7 | Found Alien Artifact 16937 | -2/Section 7 | Identified Integrated Mediator 16937 | -2/Section 7 | Installed Integrated Mediator, increased core attachment efficiency 16990 | -2/Section 7 | Found Alien Artifact 16990 | -2/Section 7 | Identified Spacefold Activator 17001 | -2/Section 7 | Discovered exit to Access (range 3) 17020 | -2/Section 7 | Spotted Executioner 17021 | -2/Section 7 | Spotted Executioner 17026 | -2/Section 7 | Destroyed Executioner 17029 | -2/Section 7 | Destroyed Executioner 17034 | -2/Section 7 | First assault squad dispatched 17040 | -2/Section 7 | Found Prototype Processor 17040 | -2/Section 7 | Identified Exp. Core Analyzer 17056 | -2/Section 7 | Found Alien Artifact 17056 | -2/Section 7 | Identified Transdimensional Reconstructor 17056 | -2/Section 7 | Warped through subspace 17068 | -2/Section 7 | Found Alien Artifact 17068 | -2/Section 7 | Identified Terrabomb 17068 | -2/Section 7 | Used Terrabomb 17097 | -2/Section 7 | Reached level 33 17097 | -2/Section 7 | Activated Sigix Exoskeleton 17097 | -2/Section 7 | Unable to understand communications from Sigix Warrior 17101 | -2/Section 7 | Spotted Executioner 17102 | -2/Section 7 | Spotted Executioner 17112 | -2/Section 7 | Destroyed Executioner 17112 | -2/Section 7 | Allies destroyed Executioner 17139 | -2/Section 7 | Spotted Striker 17139 | -2/Section 7 | Spotted Striker 17144 | -2/Section 7 | Destroyed Striker 17148 | -2/Section 7 | Destroyed Striker 17168 | -2/Section 7 | Spotted Striker 17168 | -2/Section 7 | Spotted Striker 17181 | -2/Section 7 | Sigix Warrior authorized to use Shearcannon 17182 | -2/Section 7 | Allies destroyed Striker 17186 | -2/Section 7 | Allies destroyed Striker 17214 | -2/Section 7 | Spotted Striker 17217 | -2/Section 7 | Allies destroyed Striker 17300 | -2/Section 7 | Spotted Striker 17301 | -2/Section 7 | Spotted Striker 17302 | -2/Section 7 | Spotted Investigator 17306 | -2/Section 7 | Unable to understand communications from Sigix Warrior 17308 | -2/Section 7 | Allies destroyed Striker 17312 | -2/Section 7 | Allies destroyed Striker 17317 | -2/Section 7 | Unable to understand communications from Sigix Warrior 17320 | -2/Section 7 | Reached level 34 17325 | -2/Section 7 | Found Alien Energy Cannon 17334 | -2/Section 7 | Unable to understand communications from Sigix Warrior 17341 | -2/Section 7 | Destroyed Investigator 17371 | -2/Section 7 | Destroyed 9 combat bots 17402 | -2/Section 7 | Spotted B-99 Colossus 17408 | -2/Section 7 | Spotted Striker 17409 | -2/Section 7 | Spotted Investigator 17413 | -2/Section 7 | Allies destroyed Striker 17416 | -2/Section 7 | Spotted Executioner 17417 | -2/Section 7 | Scanned by Researcher 17418 | -2/Section 7 | Intercept squad dispatched 17432 | -2/Section 7 | Spotted Tracker 17433 | -2/Section 7 | Spotted Tracker 17433 | -2/Section 7 | Allies destroyed Tracker 17438 | -2/Section 7 | Found Alien Artifact 17438 | -2/Section 7 | Identified Core Expander 17438 | -2/Section 7 | Installed Core Expander, added new Weapon slot 17440 | -2/Section 7 | Allies destroyed Tracker 17468 | -2/Section 7 | Spotted Combat Programmer 17470 | -2/Section 7 | Allies destroyed Combat Programmer 17487 | -2/Section 7 | Found Alien Artifact 17487 | -2/Section 7 | Identified LRC Energy Well 17487 | -2/Section 7 | Installed LRC Energy Well, increased energy storage capacity (+250) 17489 | -2/Section 7 | Found Alien Artifact 17489 | -2/Section 7 | Identified LRC Insulator 17489 | -2/Section 7 | Installed LRC Insulator, gained EM resistance (25) 17489 | -2/Section 7 | Spotted Combat Programmer 17491 | -2/Section 7 | Allies destroyed Combat Programmer 17650 | -2/Section 7 | Unable to understand communications from Sigix Warrior 17661 | -2/Section 7 | Destroyed Investigator 17694 | -2/Section 7 | Allies destroyed Executioner 17696 | -2/Section 7 | Reached level 35 17703 | -2/Section 7 | Spotted Striker 17707 | -2/Section 7 | Allies destroyed Striker 17713 | -2/Section 7 | Sterilization system engaged 17713 | -2/Section 7 | Non-combat units ordered to evacuate 17731 | -2/Section 7 | Destroyed 14 combat bots 17765 | -2/Section 7 | Spotted Alpha 7 17767 | -2/Section 7 | Spotted Alpha 7 17779 | -2/Section 7 | Spotted B-90 Cyclops 17813 | -2/Section 7 | Combat units ordered to evacuate 17860 | -2/Section 7 | Spotted S7 Guard 17863 | -2/Section 7 | Found Alien Artifact 17863 | -2/Section 7 | Identified Core Regenerator 17863 | -2/Section 7 | Used Core Regenerator, restored core integrity (+425) 17886 | -2/Section 7 | Spotted S7 Guard 17891 | -2/Section 7 | Found Alien Artifact 17891 | -2/Section 7 | Identified Navigation Efficiency Matrix 17891 | -2/Section 7 | Installed Navigation Efficiency Matrix, process failed with unexpected side effects 18013 | -2/Section 7 | Ambient heat levels rising (+10) 18163 | -2/Section 7 | Ambient heat levels rising (+10) 18181 | -2/Section 7 | Spotted S7 Guard 18186 | -2/Section 7 | Found Alien Artifact 18186 | -2/Section 7 | Identified Core Membrane 18186 | -2/Section 7 | Installed Core Membrane, gained immunity to corruption 18313 | -2/Section 7 | Ambient heat levels rising (+10) 18408 | -2/Section 7 | Entered Access 18658 | -1/Access | First assault squad dispatched 18983 | -1/Access | Identified exit to Command 19033 | -1/Access | High security lockdown imminent 19112 | -1/Access | Intercept squad dispatched 19113 | -1/Access | High security lockdown engaged 19133 | -1/Access | Spotted Tracker 19133 | -1/Access | Spotted Tracker 19136 | -1/Access | Destroyed Tracker 19144 | -1/Access | Destroyed Tracker 19155 | -1/Access | Spotted Combat Programmer 19159 | -1/Access | Core integrity fell below 50% 19160 | -1/Access | Destroyed Combat Programmer 19274 | -1/Access | Spotted Combat Programmer 19509 | -1/Access | Intercept squad dispatched 19538 | -1/Access | Crushed by falling debris 19539 | -1/Access | Core integrity fell below 20% 19582 | -1/Access | Entered Command 19584 | -1/Command | Reached level 36 19869 | -1/Command | First assault squad dispatched 19906 | -1/Command | Spotted M Guard 20001 | -1/Command | Spotted M Guard 20001 | -1/Command | Spotted Combat Programmer 20001 | -1/Command | Spotted Combat Programmer 20016 | -1/Command | Destroyed Combat Programmer 20024 | -1/Command | Met MAIN.C 20082 | -1/Command | Destroyed Combat Programmer 20094 | -1/Command | Destroyed by M Guard with Advanced Micro-nuke Launcher Last Messages --------------- 20030_ EMDS Slug penetrates M Guard. 20031_ Door Terminal disabled. 20032_ Combat Programmer resets M Guard, system corruption cleaned. 20033_ The unstable cave ceiling collapses. 20036_ Navigation matrix triggers involuntary quantum shift. 20078_ Slug penetrates Combat Programmer. 20078_ Combat Programmer knocked back. 20078_ Core Membrane filtered system corruption (1). 20082_ ALERT: Significant disruption in Zone 8W, multiple assault carriers dispatched. 20082_ Slug penetrates Combat Programmer. 20082_ Combat Programmer fries systems beyond repair. 20082_ Combat Programmer destroyed. 20086_ Hellfire Missile intercepted. 20088_ Knocked back. 20088_ Micro-nuke intercepted. 20089_ Hellfire Missile intercepted. 20091_ Knocked back. 20092_ Hellfire Missile intercepted. 20094_ Knocked back. Map ----- +----------------------------------------------------+ | ?????????????????????????????????????????????????? | | ?????????????????????????????????????????????????? | | ?????????????????????????????????????????????????? | | ?????????????????????????????????????????????????? | | ?????????????????????????????????????????????????? | | ?????????????????????????????????????????????????? | | ?????????????????????????????????????????????????? | | ?????????????????????????????????????????????????? | | ??????????????????????????????????????? ???????? | | ??????????????????????????????????????? ???????? | | ??????????????????????????????????????? #??????? | | ??????????????????????????????????????? #??????? | | ??????????????????????????????????????# #??????? | | ??????????????????????????????????????# #??????? | | ??????????????????????????????????????# #??????? | | ??????????????????????????????????????# #??????? | | ??????????????????????????????????????# #??????? | | ??????????????????????????????????????# #??????? | | ??????????????????????????????????????# #??????? | | ??????????????????????????????????????# #??????? | | ???"" ??????????????????????????????# #??????? | | ??? ???????????????????????????# #??????? | | ??" #######################??# #??????? | | ??" / % #??# #??????? | | ??" / Y #??# #??????? | | ?" / @ Y #??# #??????? | | ?? ################# # #??# #??????? | | ?? ????????????????????# #??# #??????? | | ??? ??????????????????????# ########?#####? | | ??? ????????????????????????# # # #?# #? | | ??? ??????????????????????????# ## ### ## | | ???????????????????????????????# | | ???????????????????????????????# | | ???????????????????????????????# | | ???????????????????????????????# | | ???????????????????????????????# | | ???????????????????????????????# ## # "# | | ???????????????????????????????###### ## " | | ????????????????????????????????????# # ###### | | ????????????????????????????????????## #???? | | ?????????????????????????????????????# # #???? | | ?????????????????????????????????????## ####???? | | ??????????????????????????????????????# #??????? | | ??????????????????????????????????????# #??????? | | ??????????????????????????????????????# #??????? | | ??????????????????????????????????????# #??????? | | ??????????????????????????????????????# #??????? | | ??????????????????????????????????????# #??????? | | ??????????????????????????????????????? #??????? | | ???????????????????????????????????????? ???????? | +----------------------------------------------------+ Best States ------------- Heat Dissipation 155 Energy Generation 65 Energy Capacity 887 Matter Stores 450 Matter Capacity 450 Sight Range 18 Robot Scan Range 15 Terrain Scan Density 10 Jamming Range 16 Additional Mass Support 12 Base Temperature (-) 200 Armor Coverage 225 Resistance: KI 10 Resistance: TH 10 Resistance: EX 10 Resistance: EM 25 Point Defense Rating 160 Weapon Cycling 15 Phase Shifting 15 Evasion (%) 80 Target Analysis 8 Armor Integrity Analysis 40 Recoil Reduction 6 Offensive Hacking 21 Defensive Hacking 5 Item Schematics ----------------- Focal Shield | -7/Zion | Archive System Restoration Module | -7/Zion | Archive Enh. Gauss Cannon | -7/Zion | Archive Adv. Shield Generator | -7/Zion | Archive Hvy. Flak Cannon | -7/Zion | Archive Weapon Cycler | -7/Zion | Archive Power Sword | -7/Zion | Archive Powered Hammer | -7/Zion | Archive Lgt. Angular Momentum Engine | -7/Zion | Archive Coolant Injector | -7/Zion | Archive Hrd. Heavy Armor Plating | -7/Zion | Archive Proton Cannon | -7/Zion | Archive Enh. Optical Array | -7/Zion | Archive Adv. ECM Suite | -7/Zion | Archive HERF Cannon | -7/Zion | Archive Combat Drone Bay | -6/Data Miner | Free Lgt. Regenerative Plating | -6/Data Miner | Free Imp. Matter Compressor | -6/Data Miner | Free Enh. Force Rifle | -6/Data Miner | Free Adv. Reaction Control System | -6/Data Miner | Free Com. HERF Cannon | -6/Data Miner | Free Hvy. Disruptor Cannon | -6/Data Miner | Free Imp. Antigrav System | -6/Data Miner | Free Cld. Gravmag System | -6/Data Miner | Free Vibroblade | -3/Testing | Archive Robot Schematics ------------------ A-02 Transporter | -9/Storage | Hacked M-14 Sweeper | -7/Zion | Archive L-41 Fighter | -7/Zion | Archive S-27 Virus | -6/Data Miner | Free B-48 Gladiator | -6/Data Miner | Free E-15 Imp | -6/Data Miner | Free L-61 Swordsman | -6/Data Miner | Free W-44 Eye | -3/Testing | Archive Fabricated ------------ Gyrokinetic Inverter | x2 | -7/Factory | Preloaded Thermal Shield | x2 | -7/Factory | Preloaded Proton Cannon | x2 | -6/Factory L-61 Swordsman | x3 | -5/Factory Alien Tech Used ----------------- Microwarp Drive Integrated Mediator Spacefold Activator Transdimensional Reconstructor Terrabomb Core Expander LRC Energy Well LRC Insulator Core Regenerator Navigation Efficiency Matrix Core Membrane Achievements -------------- Everyone Must Die Challenges ------------ None RPGLIKE | -11 -10 -10 -9 -9 -9 -7 -7 -7 -7 -6 -6 -6 -6 -6 -5 -5 -5 -5 -5 -4 -4 -4 -4 -4 -4 -3 -3 -2 -2 -2 -1 -1 --------- Run | Yrd Mat Min Mat Sto Rec Fac Low Low Zio Pro Fac Low Low Dat Pro Fac Upp Upp War Pro Fac Ext Cet Arc Hub Res Tes Res Qua Sec Acc Com Levels Raised 35 | . . 1 2 3 1 3 1 1 1 2 2 . 1 . 1 2 1 . . 1 1 1 . 1 . 2 1 1 1 3 . 1 XP Earned 56631 | 3000 665 1925 2774 3809 1444 5595 1650 1600 500 3450 2353 532 1518 220 1588 2850 838 553 176 1779 1114 1162 790 267 1050 3101 539 2217 1091 4018 1172 1291 XP Spent 55310 | 2300 560 . 2200 3300 3600 5160 1600 . 2300 2710 1280 . 2100 . . 5950 . 2510 . . 2900 . . 3400 . . 4600 . 2600 1000 3000 2240 Upgrades 95 | 4 5 . 3 3 3 16 1 . 1 15 4 . 1 . . 4 . 11 . . 1 . . 2 . . 5 . 1 1 6 8 Power Slot 1 | . . . . . . 1 . . . . . . . . . . . . . . . . . . . . . . . . . . Propulsion Slot 5 | 1 . . 1 . . 1 . . . . . . . . . 1 . . . . . . . 1 . . . . . . . . Utility Slot 10 | 1 . . 1 1 2 1 . . 1 . . . . . . 1 . . . . 1 . . . . . 1 . . . . . Weapon Slot 5 | 2 . . . 1 . . . . . . . . . . . 1 . . . . . . . 1 . . . . . . . . Core Integrity 30 | . . . . . . 6 . . . 8 2 . . . . . . 6 . . . . . . . . . . . . . 8 Heat Dissipation 13 | . 3 . . . . 4 . . . . 1 . . . . . . 5 . . . . . . . . . . . . . . Energy Generation 2 | . . . . . . 1 . . . . . . . . . 1 . . . . . . . . . . . . . . . . Mass Support 6 | . 1 . 1 1 . . 1 . . . . . 1 . . . . . . . . . . . . . . . 1 . . . Inventory Capacity 4 | . 1 . . . 1 . . . . . 1 . . . . . . . . . . . . . . . . . . 1 . . Sight Range 2 | . . . . . . . . . . 2 . . . . . . . . . . . . . . . . . . . . . . Ranged Accuracy 4 | . . . . . . . . . . 2 . . . . . . . . . . . . . . . . . . . . 2 . Hack Attack % 1 | . . . . . . 1 . . . . . . . . . . . . . . . . . . . . . . . . . . Hack Defense % 1 | . . . . . . 1 . . . . . . . . . . . . . . . . . . . . . . . . . . KI Resistance % 2 | . . . . . . . . . . 1 . . . . . . . . . . . . . . . . . . . . 1 . TH Resistance % 2 | . . . . . . . . . . 1 . . . . . . . . . . . . . . . . . . . . 1 . EX Resistance % 2 | . . . . . . . . . . 1 . . . . . . . . . . . . . . . . . . . . 1 . KI Damage % 2 | . . . . . . . . . . . . . . . . . . . . . . . . . . . 2 . . . . . TH Damage % 3 | . . . . . . . . . . . . . . . . . . . . . . . . . . . 2 . . . 1 . Protomatter Created 7810 | . 13 157 130 349 49 496 332 118 . 361 153 96 454 . 226 503 272 148 . 333 156 348 48 79 398 732 107 289 293 654 284 232 Integrity Restored 21018 | . 39 399 285 428 147 1477 1001 316 . 1083 285 288 1228 . 533 1299 781 426 . 1011 455 968 285 231 1170 2350 252 564 879 2061 192 585 Core 18367 | . 39 336 189 354 147 1394 862 244 . 1083 285 288 870 . 476 1299 416 426 . 995 217 759 285 87 1002 1951 252 564 879 1891 192 585 Parts 2651 | . . 63 96 74 . 83 139 72 . . . . 358 . 57 . 365 . . 16 238 209 . 144 168 399 . . . 170 . . Protomatter Decayed 5184 | . . 31 27 152 . . 32 15 . . 58 . 120 . 44 100 5 6 45 . . 104 . . 145 2440 153 71 . 1394 205 37 Game ------ Seed RingUtilityMinigun Manual? 0 Play Time 05:40:02 Cumulative 696.2 hours Start 2025.03.02 @ 22:20:55 End 2025.03.03 @ 06:29:10 Sessions 3 Manual Loads 0 Difficulty Rogue Special Mode Winter2019/RPGLIKE Game No. 48 Rogue 36 Adventurer 9 Explorer 3 Win Type - Total 6 Types 4/0/0/2/0/0/0/0/0 Lore% 47 Gallery% 53 Achievement% 60 Wizard Run 0 Options --------- Layout 0 ASCII 0 Keyboard 0 Movement Mouse Keybinds 0 Fullscreen 2 Font 18/SmallcapsGlow Map View 76x50 Zoom Use 0% Tactical HUD 1 Map Filters NONE Filters NONE Steam 1 RUN: bfc7235b-6550-4cf0-a881-03b358f5c802